{"text_format":"1","workbook":"xlsx","n_sheets":3,"sheets":["自己評価書作成メニュー","自己評価書","マスターシート"],"not_rendered":{"charts":0,"images":2,"macros":1,"external_links":0,"defined_names":248,"comments":0,"pivot_tables":0},"unopened":[],"bounds":{"document_bytes":16777216,"sheet_cells":100000,"rows_first":2000,"rows_last":500,"rows_between":2000,"halvings":0,"cell_chars":16384,"cell_head_chars":4096},"cells_cut":0,"cells_raw":0,"read":"whole","date_system":"1900"}

{"sheet":"自己評価書作成メニュー","index":0,"n_rows":14,"n_cols":7,"rows_kept":14,"cut":false,"hidden":true,"merged":[]}
[]
[]
[]
[]
[]
[null,null,null,null,null,null,"住宅性能評価 自己評価書 読込用ファイル"]
[]
[null,null,null,null,null,null,"マクロを有効にしてご利用下さい。"]
[]
[]
[]
[]
[]
[null,null,null,null,null,null,"評価する住宅の種類のボタンをクリックして下さい。"]

{"sheet":"自己評価書","index":1,"n_rows":84,"n_cols":243,"rows_kept":84,"cut":false,"hidden":false,"merged":[[19,220,32,220],[18,137,18,141],[17,113,17,141],[1,7,1,43],[28,216,32,216],[28,217,32,217],[28,218,32,218],[18,126,18,136],[19,219,32,219],[29,213,32,213],[29,214,32,214],[19,215,19,218],[20,215,20,216],[20,217,20,218],[21,215,27,215],[21,216,27,216],[21,217,27,217],[21,218,27,218],[28,215,32,215],[19,210,32,210],[19,211,19,214],[20,211,20,212],[20,213,20,214],[21,211,28,211],[21,212,28,212],[21,213,28,213],[21,214,28,214],[29,211,32,211],[29,212,32,212],[28,207,32,207],[28,209,32,209],[21,206,27,206],[21,207,27,207],[21,208,27,208],[21,209,27,209],[28,206,32,206],[19,201,32,201],[19,149,19,150],[20,149,32,150],[19,202,19,205],[20,202,20,203],[20,204,20,205],[21,202,28,202],[21,203,28,203],[19,162,19,163],[19,158,19,159],[19,160,19,161],[19,200,32,200],[20,158,32,159],[20,160,32,161],[20,162,32,163],[19,195,32,195],[19,199,32,199],[20,175,32,176],[6,107,6,109],[7,107,7,109],[13,101,13,109],[17,107,17,112],[13,39,13,47],[17,46,17,67],[6,58,6,66],[7,57,7,66],[8,58,8,66],[9,57,9,66],[10,57,10,65],[11,57,11,65],[19,196,32,196],[19,191,32,191],[29,140,32,140],[20,140,28,140],[19,121,19,124],[28,134,32,134],[28,133,32,133],[28,136,32,136],[29,137,32,137],[19,133,19,136],[21,122,27,122],[20,133,20,134],[21,136,27,136],[18,113,18,124],[29,141,32,141],[29,139,32,139],[20,137,28,137],[28,135,32,135],[19,155,19,157],[20,61,20,65],[7,17,7,18],[8,17,8,18],[9,17,9,18],[10,17,10,18],[6,27,6,29],[7,27,7,29],[8,27,8,29],[9,27,9,29],[10,27,10,29],[83,149,83,150],[74,149,74,150],[75,149,75,150],[76,149,76,150],[77,149,77,150],[78,149,78,150],[79,149,79,150],[68,149,68,150],[69,149,69,150],[70,149,70,150],[71,149,71,150],[72,149,72,150],[73,149,73,150],[33,149,33,150],[34,149,34,150],[35,149,35,150],[36,149,36,150],[6,17,6,18],[18,144,18,154],[20,139,28,139],[20,131,20,132],[34,113,34,116],[34,125,34,128],[34,21,34,23],[20,57,32,57],[20,43,32,44],[29,25,32,25],[19,47,32,47],[34,9,34,10],[34,11,34,12],[33,13,33,14],[34,13,34,14],[33,15,33,16],[34,15,34,16],[19,103,19,106],[19,112,28,112],[20,100,32,100],[20,87,32,87],[19,108,28,108],[19,110,28,110],[33,76,33,77],[33,64,33,65],[20,101,32,101],[20,102,32,102],[20,103,32,103],[20,106,32,106],[19,66,32,67],[20,48,32,48],[21,64,32,65],[20,58,32,58],[20,104,32,104],[29,107,32,107],[21,52,32,54],[34,43,34,44],[34,61,34,63],[1,5,1,6],[19,188,32,188],[19,189,32,189],[18,108,18,112],[18,90,18,106],[17,144,17,165],[17,142,17,143],[17,18,32,18],[17,19,32,19],[17,20,32,20],[17,21,32,23],[18,85,18,89],[20,141,28,141],[29,138,32,138],[18,80,18,84],[19,113,32,116],[20,82,30,84],[31,82,32,84],[19,74,19,79],[19,68,32,71],[29,81,32,81],[29,73,32,73],[29,80,32,80],[19,125,32,128],[18,155,18,165],[20,97,32,97],[20,95,32,95],[29,112,32,112],[20,99,32,99],[20,98,32,98],[19,109,28,109],[28,123,32,123],[29,131,32,131],[21,129,28,129],[27,242,27,243],[33,158,33,159],[33,160,33,161],[33,162,33,163],[33,164,33,165],[19,142,28,142],[19,143,28,143],[20,153,32,154],[19,153,19,154],[19,164,19,165],[21,242,21,243],[22,242,22,243],[23,242,23,243],[24,242,24,243],[25,242,25,243],[26,242,26,243],[27,239,27,240],[20,151,32,152],[20,146,32,146],[29,143,32,143],[29,142,32,142],[19,223,32,223],[19,222,32,222],[21,239,21,240],[22,239,22,240],[23,239,23,240],[24,239,24,240],[25,239,25,240],[26,239,26,240],[33,147,33,148],[20,145,32,145],[19,147,19,148],[33,3,33,4],[33,5,33,6],[33,7,33,8],[33,59,33,60],[33,55,33,56],[33,113,33,116],[33,66,33,67],[33,9,33,10],[33,11,33,12],[33,21,33,23],[19,193,32,193],[19,194,32,194],[19,39,32,39],[19,24,28,24],[19,38,32,38],[19,192,32,192],[19,190,32,190],[19,99,19,102],[33,125,33,128],[33,78,33,79],[33,43,33,44],[33,50,33,51],[33,52,33,54],[33,27,33,31],[33,32,33,34],[33,68,33,71],[33,40,33,41],[21,132,28,132],[19,129,19,132],[29,129,32,129],[34,164,34,165],[19,221,32,221],[19,226,32,226],[19,227,32,227],[19,228,32,228],[34,160,34,161],[34,162,34,163],[34,158,34,159],[34,153,34,154],[33,151,33,152],[33,153,33,154],[34,151,34,152],[34,147,34,148],[29,202,32,202],[29,203,32,203],[29,204,32,204],[29,205,32,205],[21,204,28,204],[21,205,28,205],[19,206,19,209],[20,206,20,207],[20,208,20,209],[20,157,32,157],[19,197,32,197],[19,198,32,198],[19,225,32,225],[20,164,32,165],[20,155,32,155],[20,156,32,156],[19,151,19,152],[20,147,32,148],[28,208,32,208],[6,40,6,45],[8,40,8,45],[7,40,7,47],[6,89,6,91],[7,89,7,91],[9,89,9,91],[17,85,17,106],[6,75,6,76],[19,48,19,56],[19,95,19,98],[19,85,19,87],[21,133,27,133],[20,138,28,138],[29,130,32,130],[29,132,32,132],[28,124,32,124],[34,1,34,2],[34,3,34,4],[34,5,34,6],[33,1,33,2],[34,7,34,8],[33,92,33,94],[34,27,34,31],[34,32,34,34],[34,64,34,65],[34,68,34,71],[34,52,34,54],[34,92,34,94],[34,40,34,41],[34,50,34,51],[34,59,34,60],[34,66,34,67],[21,135,27,135],[19,138,19,141],[21,124,27,124],[21,130,28,130],[19,144,19,146],[20,144,32,144],[20,135,20,136],[20,129,20,130],[21,134,27,134],[21,131,28,131],[5,32,5,33],[19,57,19,65],[8,50,8,51],[5,50,5,51],[20,96,32,96],[20,91,32,91],[19,107,28,107],[19,90,19,94],[20,105,32,105],[6,93,6,94],[29,75,32,75],[20,78,30,79],[29,89,32,89],[20,88,28,88],[11,39,12,47],[19,88,19,89],[29,88,32,88],[6,50,6,51],[6,55,6,56],[10,33,10,38],[7,93,7,94],[9,33,9,38],[17,0,32,0],[17,3,32,4],[17,5,32,6],[17,7,32,8],[17,1,32,2],[19,45,28,45],[19,26,32,26],[29,35,32,35],[19,37,32,37],[19,36,32,36],[18,47,18,67],[21,61,32,63],[20,59,32,60],[20,86,32,86],[20,85,32,85],[31,76,32,77],[20,49,32,49],[20,50,32,51],[20,52,20,56],[20,40,32,41],[29,72,32,72],[17,9,32,10],[17,11,32,12],[17,13,32,14],[17,15,32,16],[19,32,32,34],[19,35,28,35],[19,27,32,31],[17,17,32,17],[29,24,32,24],[19,25,28,25],[19,80,19,84],[7,75,7,76],[29,45,32,45],[29,46,32,46],[19,46,28,46],[21,55,32,56],[19,117,19,120],[19,111,28,111],[29,117,32,117],[21,117,28,117],[21,118,28,118],[29,119,32,119],[29,120,32,120],[20,117,20,118],[20,121,20,122],[28,121,32,121],[21,121,27,121],[20,76,30,77],[29,108,32,108],[29,109,32,109],[29,118,32,118],[28,122,32,122],[29,110,32,110],[29,111,32,111],[21,119,28,119],[21,120,28,120],[19,72,28,73],[20,90,32,90],[29,74,32,74],[20,89,28,89],[17,74,17,84],[18,74,18,79],[7,34,7,38],[20,119,20,120],[74,40,74,41],[74,43,74,44],[74,50,74,51],[74,52,74,54],[74,55,74,56],[74,59,74,60],[74,61,74,63],[74,64,74,65],[74,66,74,67],[74,13,74,14],[74,15,74,16],[74,21,74,23],[74,125,74,128],[9,40,9,45],[10,40,10,45],[19,42,32,42],[31,78,32,79],[20,92,32,94],[21,123,27,123],[20,123,20,124],[72,92,72,94],[69,78,69,79],[73,92,73,94],[73,113,73,116],[73,125,73,128],[69,82,69,84],[34,82,34,84],[34,76,34,77],[34,78,34,79],[34,55,34,56],[33,61,33,63],[33,82,33,84],[74,151,74,152],[74,153,74,154],[74,158,74,159],[74,160,74,161],[74,162,74,163],[74,164,74,165],[72,1,72,2],[72,3,72,4],[72,5,72,6],[72,7,72,8],[72,9,72,10],[72,11,72,12],[72,13,72,14],[72,15,72,16],[72,21,72,23],[72,27,72,31],[72,32,72,34],[72,40,72,41],[72,43,72,44],[72,50,72,51],[72,52,72,54],[72,55,72,56],[72,59,72,60],[72,61,72,63],[74,1,74,2],[74,3,74,4],[74,5,74,6],[74,7,74,8],[74,9,74,10],[74,11,74,12],[74,27,74,31],[74,32,74,34],[72,64,72,65],[72,66,72,67],[72,68,72,71],[72,76,72,77],[72,78,72,79],[72,82,72,84],[73,82,73,84],[81,68,81,71],[72,113,72,116],[72,125,72,128],[72,147,72,148],[72,151,72,152],[72,153,72,154],[72,158,72,159],[72,160,72,161],[73,61,73,63],[73,64,73,65],[73,66,73,67],[81,61,81,63],[81,64,81,65],[81,66,81,67],[75,59,75,60],[77,61,77,63],[77,64,77,65],[77,66,77,67],[77,125,77,128],[77,153,77,154],[77,158,77,159],[77,160,77,161],[78,160,78,161],[72,162,72,163],[72,164,72,165],[76,153,76,154],[76,158,76,159],[76,160,76,161],[76,162,76,163],[76,164,76,165],[79,164,79,165],[80,164,80,165],[74,68,74,71],[74,76,74,77],[74,78,74,79],[74,82,74,84],[74,92,74,94],[74,113,74,116],[73,78,73,79],[74,147,74,148],[73,68,73,71],[73,76,73,77],[73,147,73,148],[73,151,73,152],[73,153,73,154],[73,158,73,159],[73,160,73,161],[73,162,73,163],[73,164,73,165],[77,68,77,71],[77,76,77,77],[77,78,77,79],[77,82,77,84],[77,92,77,94],[77,113,77,116],[73,1,73,2],[73,3,73,4],[73,5,73,6],[73,7,73,8],[73,9,73,10],[73,11,73,12],[73,13,73,14],[73,15,73,16],[73,21,73,23],[73,27,73,31],[73,32,73,34],[73,40,73,41],[73,43,73,44],[73,50,73,51],[73,52,73,54],[73,55,73,56],[73,59,73,60],[81,1,81,2],[81,3,81,4],[81,5,81,6],[81,7,81,8],[81,9,81,10],[81,11,81,12],[81,13,81,14],[81,15,81,16],[81,21,81,23],[81,27,81,31],[81,32,81,34],[81,40,81,41],[81,43,81,44],[81,50,81,51],[81,52,81,54],[81,55,81,56],[81,59,81,60],[76,1,76,2],[76,3,76,4],[76,5,76,6],[76,7,76,8],[70,61,70,63],[70,64,70,65],[70,66,70,67],[70,68,70,71],[70,76,70,77],[69,11,69,12],[69,13,69,14],[69,15,69,16],[69,21,69,23],[69,27,69,31],[69,32,69,34],[69,40,69,41],[69,43,69,44],[69,50,69,51],[69,52,69,54],[69,55,69,56],[69,59,69,60],[69,61,69,63],[69,64,69,65],[69,66,69,67],[69,68,69,71],[69,76,69,77],[70,1,70,2],[70,3,70,4],[70,5,70,6],[70,7,70,8],[70,9,70,10],[70,11,70,12],[70,13,70,14],[70,15,70,16],[70,21,70,23],[70,27,70,31],[70,32,70,34],[70,40,70,41],[70,43,70,44],[70,50,70,51],[70,52,70,54],[70,55,70,56],[70,59,70,60],[70,78,70,79],[70,82,70,84],[70,92,70,94],[70,113,70,116],[70,125,70,128],[70,147,70,148],[70,151,70,152],[70,153,70,154],[70,158,70,159],[70,160,70,161],[70,162,70,163],[70,164,70,165],[71,1,71,2],[71,3,71,4],[71,5,71,6],[71,7,71,8],[71,9,71,10],[71,11,71,12],[71,13,71,14],[71,15,71,16],[71,21,71,23],[71,27,71,31],[71,32,71,34],[71,68,71,71],[71,76,71,77],[71,78,71,79],[71,40,71,41],[71,43,71,44],[71,50,71,51],[71,52,71,54],[71,55,71,56],[71,59,71,60],[71,153,71,154],[71,158,71,159],[71,160,71,161],[71,162,71,163],[71,164,71,165],[71,82,71,84],[71,92,71,94],[71,113,71,116],[71,125,71,128],[71,147,71,148],[35,1,35,2],[35,3,35,4],[35,5,35,6],[35,7,35,8],[35,9,35,10],[71,151,71,152],[71,61,71,63],[71,64,71,65],[71,66,71,67],[35,11,35,12],[35,13,35,14],[35,15,35,16],[35,21,35,23],[35,27,35,31],[35,32,35,34],[35,40,35,41],[35,43,35,44],[35,50,35,51],[35,52,35,54],[35,55,35,56],[35,59,35,60],[35,61,35,63],[35,64,35,65],[35,66,35,67],[35,68,35,71],[35,76,35,77],[35,78,35,79],[35,82,35,84],[35,92,35,94],[35,113,35,116],[35,125,35,128],[35,147,35,148],[35,151,35,152],[35,153,35,154],[35,158,35,159],[35,160,35,161],[35,162,35,163],[35,164,35,165],[75,1,75,2],[75,3,75,4],[75,5,75,6],[75,7,75,8],[75,9,75,10],[75,11,75,12],[75,13,75,14],[75,15,75,16],[75,21,75,23],[75,27,75,31],[75,32,75,34],[75,40,75,41],[75,43,75,44],[75,50,75,51],[75,52,75,54],[75,55,75,56],[62,1,62,2],[62,3,62,4],[62,5,62,6],[62,7,62,8],[62,9,62,10],[62,160,62,161],[82,59,82,60],[75,61,75,63],[75,64,75,65],[75,66,75,67],[75,68,75,71],[75,76,75,77],[75,78,75,79],[75,82,75,84],[75,153,75,154],[75,158,75,159],[75,160,75,161],[75,162,75,163],[75,164,75,165],[75,92,75,94],[75,113,75,116],[75,125,75,128],[75,147,75,148],[75,151,75,152],[81,76,81,77],[81,78,81,79],[81,82,81,84],[81,153,81,154],[81,158,81,159],[81,160,81,161],[81,149,81,150],[81,162,81,163],[81,164,81,165],[81,92,81,94],[81,113,81,116],[81,125,81,128],[81,147,81,148],[81,151,81,152],[82,64,82,65],[82,66,82,67],[82,68,82,71],[82,76,82,77],[82,78,82,79],[82,82,82,84],[82,92,82,94],[82,113,82,116],[82,125,82,128],[82,147,82,148],[82,151,82,152],[82,153,82,154],[82,149,82,150],[82,158,82,159],[82,160,82,161],[82,162,82,163],[82,1,82,2],[82,3,82,4],[82,5,82,6],[82,7,82,8],[82,9,82,10],[82,11,82,12],[82,13,82,14],[82,15,82,16],[82,21,82,23],[82,27,82,31],[82,32,82,34],[82,40,82,41],[82,43,82,44],[82,50,82,51],[82,52,82,54],[82,55,82,56],[82,164,82,165],[83,1,83,2],[83,3,83,4],[83,5,83,6],[83,7,83,8],[83,9,83,10],[83,11,83,12],[83,13,83,14],[83,15,83,16],[83,21,83,23],[83,27,83,31],[83,32,83,34],[83,68,83,71],[83,76,83,77],[83,78,83,79],[83,40,83,41],[83,43,83,44],[83,50,83,51],[83,52,83,54],[83,55,83,56],[83,59,83,60],[83,153,83,154],[83,158,83,159],[83,160,83,161],[83,162,83,163],[83,164,83,165],[83,82,83,84],[83,92,83,94],[83,113,83,116],[83,125,83,128],[83,147,83,148],[82,61,82,63],[76,9,76,10],[83,151,83,152],[83,61,83,63],[83,64,83,65],[83,66,83,67],[76,11,76,12],[76,13,76,14],[76,15,76,16],[76,21,76,23],[76,27,76,31],[76,32,76,34],[76,40,76,41],[76,43,76,44],[76,50,76,51],[76,52,76,54],[76,55,76,56],[76,59,76,60],[76,61,76,63],[76,64,76,65],[76,66,76,67],[76,68,76,71],[76,76,76,77],[76,78,76,79],[76,82,76,84],[76,92,76,94],[76,113,76,116],[76,125,76,128],[76,147,76,148],[76,151,76,152],[77,147,77,148],[77,151,77,152],[78,147,78,148],[77,1,77,2],[77,3,77,4],[77,5,77,6],[77,7,77,8],[77,9,77,10],[77,11,77,12],[77,13,77,14],[77,15,77,16],[77,21,77,23],[77,27,77,31],[77,32,77,34],[77,40,77,41],[77,43,77,44],[77,50,77,51],[77,52,77,54],[77,55,77,56],[77,59,77,60],[77,162,77,163],[77,164,77,165],[78,1,78,2],[78,3,78,4],[78,5,78,6],[78,7,78,8],[78,9,78,10],[78,11,78,12],[78,13,78,14],[78,15,78,16],[78,21,78,23],[78,27,78,31],[78,32,78,34],[78,40,78,41],[78,43,78,44],[78,50,78,51],[78,52,78,54],[78,55,78,56],[78,59,78,60],[78,61,78,63],[78,64,78,65],[78,66,78,67],[78,68,78,71],[78,76,78,77],[78,78,78,79],[78,82,78,84],[78,92,78,94],[78,113,78,116],[78,125,78,128],[78,151,78,152],[78,153,78,154],[78,158,78,159],[78,162,78,163],[78,164,78,165],[79,1,79,2],[79,3,79,4],[79,5,79,6],[79,7,79,8],[79,9,79,10],[79,11,79,12],[79,13,79,14],[79,15,79,16],[79,21,79,23],[79,27,79,31],[79,32,79,34],[79,40,79,41],[79,43,79,44],[79,50,79,51],[79,52,79,54],[79,55,79,56],[79,59,79,60],[79,61,79,63],[79,64,79,65],[79,66,79,67],[79,68,79,71],[79,76,79,77],[79,78,79,79],[79,82,79,84],[79,92,79,94],[79,113,79,116],[79,125,79,128],[79,147,79,148],[79,151,79,152],[79,153,79,154],[79,158,79,159],[79,160,79,161],[79,162,79,163],[80,1,80,2],[80,3,80,4],[80,5,80,6],[80,7,80,8],[80,9,80,10],[80,11,80,12],[80,13,80,14],[80,15,80,16],[80,21,80,23],[80,27,80,31],[80,32,80,34],[80,40,80,41],[80,43,80,44],[80,50,80,51],[80,52,80,54],[80,55,80,56],[80,59,80,60],[80,61,80,63],[80,64,80,65],[80,66,80,67],[80,68,80,71],[80,76,80,77],[80,78,80,79],[80,82,80,84],[80,92,80,94],[80,113,80,116],[80,125,80,128],[80,147,80,148],[80,151,80,152],[80,153,80,154],[80,149,80,150],[80,158,80,159],[80,160,80,161],[80,162,80,163],[62,11,62,12],[62,13,62,14],[62,15,62,16],[62,21,62,23],[62,27,62,31],[62,32,62,34],[62,40,62,41],[62,43,62,44],[62,50,62,51],[62,52,62,54],[62,55,62,56],[62,59,62,60],[62,61,62,63],[62,64,62,65],[62,66,62,67],[62,68,62,71],[62,76,62,77],[62,78,62,79],[62,82,62,84],[62,92,62,94],[62,113,62,116],[62,125,62,128],[62,147,62,148],[62,151,62,152],[62,153,62,154],[62,149,62,150],[62,158,62,159],[62,162,62,163],[62,164,62,165],[63,1,63,2],[63,3,63,4],[63,5,63,6],[63,7,63,8],[63,9,63,10],[63,11,63,12],[63,13,63,14],[63,15,63,16],[63,21,63,23],[63,27,63,31],[63,32,63,34],[63,40,63,41],[63,43,63,44]],"merged_total":2556,"flags":["merged_cut"]}
["Ver.1.01"]
[null,null,null,null,null,"件名："]
[]
["（住棟部分）"]
[]
[null,null,null,null,null,null,null,null,null,null,null,null,null,null,null,null,null,"１構造の安定",null,null,null,null,null,null,null,null,null,null,null,null,null,null,"1-6.",null,"地盤又は杭の許容支持力等及びその設定方法",null,null,null,null,null,null,null,null,null,null,null,null,null,null,null,"1-7.",null,"基礎の構造方法及び形式等",null,null,null,null,null,null,null,null,null,null,null,null,null,null,null,null,null,null,null,null,null,null,2,"火災時の安全",null,null,null,null,null,null,null,null,null,null,null,null,null,null,null,null,4,"維持管理への配慮",null,null,null,null,null,null,null,null,null,null,null,null,null,null,null,null,null,null,null,null,null,null,null,null,null,null,null,null,null,null,null,null,null,null,null,null,null,null,null,null,null,null,null,null,null,null,null,null,null,null,null,null,null,null,null,null,null,null,null,null,null,null,null,null,null,null,null,null,null,null,null,null,null,null,null,null,null,null,null,null,null,null,null,null,null,null,null,null,null,null,null,null,null,null,null,null,null,null,null,null,null,null,null,null,null,null,null,null,null,null,null,null,null,null,null,null,null,null,null,null,null,null,null,null,null,null,null,null,null,null,null,null,null,null,null,null,null,null,null,null,null,null,null,"読込種類","読込判定に使用（1: 概要、2: 等級）",2]
[null,null,null,null,null,null,null,null,null,null,null,null,null,null,null,null,null,"1-1.",null,"耐震等級(倒壊等防止)",null,null,null,null,null,null,"[0-3]",null,null,null,null,null,null,"地盤の許容応力度",null,null,null,null,null,{"$f":"IF(AO7=\"\",\"□\",\"■\")","v":"□"},null,null,null,null,null,null,"kN/㎡",null,null,null,"a.",null,"直接基礎",null,null,"構造方法",null,{"$f":"IF(BG7=\"\",\"□\",\"■\")","v":"□"},null,null,null,null,null,null,null,null,null,null,null,null,null,null,null,null,null,"2-5.",null,null,"耐火等級(開口部)",null,null,null,null,null,null,null,null,null,"[0-3]",null,null,null,null,"4-2.",null,"維持管理対策等級(共用配管)",null,null,null,null,null,null,null,null,null,null,"[0-3]",null,null,null,null,null,null,null,null,null,null,null,null,null,null,null,null,null,null,null,null,null,null,null,null,null,null,null,null,null,null,null,null,null,null,null,null,null,null,null,null,null,null,null,null,null,null,null,null,null,null,null,null,null,null,null,null,null,null,null,null,null,null,null,null,null,null,null,null,null,null,null,null,null,null,null,null,null,null,null,null,null,null,null,null,null,null,null,null,null,null,null,null,null,null,null,null,null,null,null,null,null,null,null,null,null,null,null,null,null,null,null,null,null,null,null,null,null,null,null,null,null,null,null,null,null,null,null,null,null,null,null,"評価の種類","〃",1]
[null,null,null,null,null,null,null,null,null,null,null,null,null,null,null,null,null,"1-2.",null,"耐震等級(損傷防止)",null,null,null,null,null,null,"[0-3]",null,null,null,null,null,null,null,null,null,null,null,null,"□","地盤改良後の数値とする",null,null,null,null,null,null,null,null,null,null,null,null,null,null,"形式",null,null,null,null,null,null,null,null,null,null,null,null,null,null,null,null,null,null,null,"2-6.",null,null,"耐火等級(開口部以外)",null,null,null,null,null,null,null,null,null,"[0-4]",null,null,null,null,"4-3.",null,"更新対策等級(共用排水管)",null,null,null,null,null,null,null,null,null,null,"[0-3]",null,null,null,null,null,null,null,null,null,null,null,null,null,null,null,null,null,null,null,null,null,null,null,null,null,null,null,null,null,null,null,null,null,null,null,null,null,null,null,null,null,null,null,null,null,null,null,null,null,null,null,null,null,null,null,null,null,null,null,null,null,null,null,null,null,null,null,null,null,null,null,null,null,null,null,null,null,null,null,null,null,null,null,null,null,null,null,null,null,null,null,null,null,null,null,null,null,null,null,null,null,null,null,null,null,null,null,null,null,null,null,null,null,null,null,null,null,null,null,null,null,null,null,null,null,null,null,null,null,null,null,"住宅の種類","〃",2]
[null,null,null,null,null,null,null,null,null,null,null,null,null,null,null,null,null,"1-3.",null,"免震構造物",null,null,null,null,null,null,null,null,null,null,null,null,null,"杭の許容支持力",null,null,null,null,null,{"$f":"IF(AO9=\"\",\"□\",\"■\")","v":"□"},null,null,null,null,null,null,"kN/本",null,null,null,"b.",null,"杭基礎",null,null,"杭種",null,{"$f":"IF(BG9=\"\",\"□\",\"■\")","v":"□"},null,null,null,null,null,null,null,null,null,null,null,null,null,null,null,null,null,3,"劣化の軽減",null,null,null,null,null,null,null,null,null,null,null,null,null,null,null,null,null,null,"共用排水立管の位置",null,null,null,null,null,"□","共用廊下に面する共用部分",null,null,null,null,null,null,null,null,null,null,null,null,null,null,null,null,null,null,null,null,null,null,null,null,null,null,null,null,null,null,null,null,null,null,null,null,null,null,null,null,null,null,null,null,null,null,null,null,null,null,null,null,null,null,null,null,null,null,null,null,null,null,null,null,null,null,null,null,null,null,null,null,null,null,null,null,null,null,null,null,null,null,null,null,null,null,null,null,null,null,null,null,null,null,null,null,null,null,null,null,null,null,null,null,null,null,null,null,null,null,null,null,null,null,null,null,null,null,null,null,null,null,null,null,null,null,null,null,null,null,null,null,null,null,null,"1.3 免震構造物 免震建築物","読込データとして使用",{"$f":"IF(work_tower_N01_3=マスターシート!C4, \"○\", \"\")","v":""}]
[null,null,null,null,null,null,null,null,null,null,null,null,null,null,null,null,null,"1-4.",null,"耐風等級",null,null,null,null,null,null,"[1-2]",null,null,null,null,null,null,"杭状改良地盤の許容支持力度",null,null,null,null,null,{"$f":"IF(AO10=\"\",\"□\",\"■\")","v":"□"},null,null,null,null,null,null,"kN/㎡",null,null,null,null,null,null,null,null,null,null,null,null,null,null,null,null,null,null,null,null,null,null,null,null,null,null,null,null,null,null,"3-1.","劣化対策等級",null,null,null,null,null,null,null,null,null,"[1-3]",null,null,null,null,null,null,null,null,null,null,null,null,"□","外壁面、吹き抜け等の住戸外周部",null,null,null,null,null,null,null,null,null,null,null,null,null,null,null,null,null,null,null,null,null,null,null,null,null,null,null,null,null,null,null,null,null,null,null,null,null,null,null,null,null,null,null,null,null,null,null,null,null,null,null,null,null,null,null,null,null,null,null,null,null,null,null,null,null,null,null,null,null,null,null,null,null,null,null,null,null,null,null,null,null,null,null,null,null,null,null,null,null,null,null,null,null,null,null,null,null,null,null,null,null,null,null,null,null,null,null,null,null,null,null,null,null,null,null,null,null,null,null,null,null,null,null,null,null,null,null,null,null,null,null,null,null,null,null,"1.3 免震構造物 その他","〃",{"$f":"IF(work_tower_N01_3=マスターシート!C5, \"○\", \"\")","v":""}]
[null,null,null,null,null,null,null,null,null,null,null,null,null,null,null,null,null,"1-5.",null,"耐積雪等級",null,null,null,null,null,null,"[0-2]",null,null,null,null,null,null,"杭状改良地盤の許容支持力",null,null,null,null,null,{"$f":"IF(AO11=\"\",\"□\",\"■\")","v":"□"},null,null,null,null,null,null,"kN/本",null,null,null,null,null,null,null,null,"杭径",null,null,null,null,null,null,null,null,null,null,"cm",null,null,null,null,null,null,null,null,null,null,null,null,null,null,null,null,null,null,null,null,null,null,null,null,null,null,null,null,null,null,null,null,null,null,"□","バルコニー",null,null,null,null,null,null,null,null,null,null,null,null,null,null,null,null,null,null,null,null,null,null,null,null,null,null,null,null,null,null,null,null,null,null,null,null,null,null,null,null,null,null,null,null,null,null,null,null,null,null,null,null,null,null,null,null,null,null,null,null,null,null,null,null,null,null,null,null,null,null,null,null,null,null,null,null,null,null,null,null,null,null,null,null,null,null,null,null,null,null,null,null,null,null,null,null,null,null,null,null,null,null,null,null,null,null,null,null,null,null,null,null,null,null,null,null,null,null,null,null,null,null,null,null,null,null,null,null,null,null,null,null,null,null,null,"1.6 地盤調査方法等","〃",{"$f":"work_tower_N01_6_JIBAN_TYOUSA_1 & work_tower_N01_6_JIBAN_TYOUSA_2 & work_tower_N01_6_JIBAN_TYOUSA_3 & work_tower_N01_6_JIBAN_TYOUSA_4","v":""}]
[null,null,null,null,null,null,null,null,null,null,null,null,null,null,null,null,null,null,null,null,null,null,null,null,null,null,null,null,null,null,null,null,null,"地盤調査方法等",null,null,null,null,null,null,null,null,null,null,null,null,null,null,null,null,null,null,null,null,null,"杭長",null,null,null,null,null,null,null,null,null,null,"ｍ",null,null,null,null,null,null,null,null,null,null,null,null,null,null,null,null,null,null,null,null,null,null,null,null,null,null,null,null,null,null,null,null,null,null,"□","住戸専用部",null,null,null,null,null,null,null,null,null,null,null,null,null,null,null,null,null,null,null,null,null,null,null,null,null,null,null,null,null,null,null,null,null,null,null,null,null,null,null,null,null,null,null,null,null,null,null,null,null,null,null,null,null,null,null,null,null,null,null,null,null,null,null,null,null,null,null,null,null,null,null,null,null,null,null,null,null,null,null,null,null,null,null,null,null,null,null,null,null,null,null,null,null,null,null,null,null,null,null,null,null,null,null,null,null,null,null,null,null,null,null,null,null,null,null,null,null,null,null,null,null,null,null,null,null,null,null,null,null,null,null,null,null,null,null,"1.7 杭径","〃",{"$f":"IF(work_tower_N01_7_KUI_KEI_max <> \"\", work_tower_N01_7_KUI_KEI_max, \"\") & IF(work_tower_N01_7_KUI_KEI_max <> \"\", IF(work_tower_N01_7_KUI_KEI_max <> \"\", \" \", \"\"), \"\") & IF(work_tower_N01_7_KUI_KEI_min <> \"\", work_tower_N01_7_KUI_KEI_min, \"\")","v":""},{"$f":"IF(work_tower_N01_7_KUI_KEI_max <> \"\", \"最大値：\" & work_tower_N01_7_KUI_KEI_max, \"\") & IF(work_tower_N01_7_KUI_KEI_max <> \"\", IF(work_tower_N01_7_KUI_KEI_max <> \"\", \" \", \"\"), \"\") & IF(work_tower_N01_7_KUI_KEI_min <> \"\", \"最小値：\" & work_tower_N01_7_KUI_KEI_min, \"\")","v":""}]
[null,null,null,null,null,null,null,null,null,null,null,null,null,null,null,null,null,null,null,null,null,null,null,null,null,null,null,null,null,null,null,null,null,null,null,null,null,null,null,null,null,null,null,null,null,null,null,null,null,null,null,null,null,null,null,null,null,null,null,null,null,null,null,null,null,null,null,null,null,null,null,null,null,null,null,null,null,null,null,null,null,null,null,null,null,null,null,null,null,null,null,null,null,null,null,null,null,null,null,null,null,"□","その他",null,null,null,null,null,null,null,null,null,null,null,null,null,null,null,null,null,null,null,null,null,null,null,null,null,null,null,null,null,null,null,null,null,null,null,null,null,null,null,null,null,null,null,null,null,null,null,null,null,null,null,null,null,null,null,null,null,null,null,null,null,null,null,null,null,null,null,null,null,null,null,null,null,null,null,null,null,null,null,null,null,null,null,null,null,null,null,null,null,null,null,null,null,null,null,null,null,null,null,null,null,null,null,null,null,null,null,null,null,null,null,null,null,null,null,null,null,null,null,null,null,null,null,null,null,null,null,null,null,null,null,null,null,null,null,"1.7 杭長","〃",{"$f":"IF(work_tower_N01_7_KUI_TYOU_max <> \"\", work_tower_N01_7_KUI_TYOU_max, \"\") & IF(work_tower_N01_7_KUI_TYOU_max <> \"\", IF(work_tower_N01_7_KUI_TYOU_min <> \"\", \" \", \"\"), \"\") & IF(work_tower_N01_7_KUI_TYOU_min <> \"\", work_tower_N01_7_KUI_TYOU_min, \"\")","v":""},{"$f":"IF(work_tower_N01_7_KUI_TYOU_max <> \"\", \"最大値：\" & work_tower_N01_7_KUI_TYOU_max, \"\") & IF(work_tower_N01_7_KUI_TYOU_max <> \"\", IF(work_tower_N01_7_KUI_TYOU_min <> \"\", \" \", \"\"), \"\") & IF(work_tower_N01_7_KUI_TYOU_min <> \"\", \"最小値：\" & work_tower_N01_7_KUI_TYOU_min, \"\")","v":""}]
[null,null,null,null,null,null,null,null,null,null,null,null,null,null,null,null,null,null,null,null,null,null,null,null,null,null,null,null,null,null,null,null,null,"地盤改良方法",null,null,null,null,null,null,null,null,null,null,null,null,null,null,null,null,null,null,null,null,null,null,null,null,null,null,null,null,null,null,null,null,null,null,null,null,null,null,null,null,null,null,null,null,null,null,null,null,null,null,null,null,null,null,null,null,null,null,null,null,null,"その他備考",null,null,null,null,null,""]
[]
[null,null,null,null,null,null,null,null,null,null,null,null,null,null,null,null,null,null,null,null,null,null,null,null,null,null,null,null,null,null,null,null,null,null,null,null,null,null,null,null,null,null,null,null,null,null,null,null,null,null,null,null,null,null,null,null,null,null,null,null,null,"※その２：メゾネットの場合",null,null,null,null,null,null,null,null,null,null,null,null,null,null,null,null,null,null,null,null,null,null,null,null,null,null,null,null,null,null,null,null,null,null,null,null,null,null,null,null,null,null,null,null,null,null,"※方位別開口比の値が100の場合には、[%以上]を[%]と読み替える。",null,null,null,null,null,null,null,null,null,null,null,null,null,null,null,null,null,null,"相当スラブ厚：0:該当なし　a:27cm以上　b:20cm以上　c:15cm以上　d:11cm以上　e:その他"]
["（住戸部分）",null,null,null,null,null,null,null,null,null,null,null,null,null,null,null,null,null,null,null,null,null,null,null,null,null,null,null,null,null,null,null,null,null,null,null,null,null,null,null,null,null,null,null,null,null,null,null,null,null,null,null,null,null,null,null,null,null,null,null,null,null,null,null,null,null,null,null,null,null,null,null,null,null,null,null,null,null,null,null,null,null,null,null,null,null,null,null,null,null,null,null,null,null,null,null,null,null,null,null,null,null,null,null,null,null,null,null,"※方位別開口比の値が[-]の場合には、[0%]と読み替える。",null,null,null,null,null,null,null,null,null,null,null,null,null,null,null,null,null,null,"レベル低減量：0:該当なし　a:30db　b:25db　c:20db　d:15db　e:その他"]
["通し番号","住戸番号　新",null,"住戸番号",null,"階",null,"タイプ",null,"居室の床面積",null,"専用部分の面積",null,"バルコニー等専用使用部分の面積",null,"合計床面積",null,"住戸への経路（共用階段）","住戸への経路（共用廊下）","住戸への経路（エレベーター）","界壁","界床",null,null,"2.火災時の安全",null,null,null,null,null,null,null,null,null,null,null,null,null,null,null,null,null,null,null,null,null,"4.維持管理・更新対策",null,null,null,null,null,null,null,null,null,null,null,null,null,null,null,null,null,null,null,null,null,null,null,null,null,null,null,"5.温熱",null,null,null,null,null,null,null,null,null,null,"6.空気環境",null,null,null,null,null,null,null,null,null,null,null,null,null,null,null,null,null,null,null,null,null,"7.光・視環境",null,null,null,null,null,"　8.音環境",null,null,null,null,null,null,null,null,null,null,null,null,null,null,null,null,null,null,null,null,null,null,null,null,null,null,null,null,"9.高齢",null,"10.防犯",null,null,null,null,null,null,null,null,null,null,null,null,null,null,null,null,null,null,null,null,null,"10.防犯"]
[null,null,null,null,null,null,null,null,null,null,null,null,null,null,null,null,null,null,null,null,null,null,null,null,1,2,"3.避難安全対策",null,null,null,null,null,null,null,null,null,"4.脱出対策",null,null,null,null,null,null,null,null,7,1,"4.更新対策",null,null,null,null,null,null,null,null,null,null,null,null,null,null,null,null,null,null,null,null,null,null,null,null,null,null,1,null,null,null,null,null,2,null,null,null,null,"1.ホルムアルデヒドﾞ対策",null,null,null,null,"2.換気対策",null,null,null,null,null,null,null,null,null,null,null,null,null,null,null,null,1,"2.方位別開口比",null,null,null,null,"1.重量床衝撃音対策",null,null,null,null,null,null,null,null,null,null,null,null,"2．軽量床衝撃音対策",null,null,null,null,null,null,null,null,null,null,"透過損失等級",null,null,null,null,1,2,"建物出入り口の階",null,null,null,null,null,null,null,null,null,null,"建物出入り口の以外の階",null,null,null,null,null,null,null,null,null,null,"1.開口部の侵入防止対策（３）",null,null,null,null,null,null,null,null,null,null,"1.開口部の侵入防止対策（４）"]
[null,null,null,null,null,null,null,null,null,null,null,null,null,null,null,null,null,null,null,null,null,null,null,null,"感知警報装置（自住戸）","感知警報装置（他住戸）","該当なし","排煙形式",null,null,null,null,"平面形状",null,null,"隔壁開口部等級","該当なし","直通バルコニー","隣戸バルコニー","避難器具",null,null,"その他",null,null,"界壁及び界床","維持管理（専用配管）","該当なし","（その１）",null,null,null,null,null,null,null,null,"（その２）",null,null,null,null,null,null,null,null,"間取りの変更の障害",null,"計算方法",null,null,null,"省エネルギー対策",null,"断熱等性能",null,null,null,null,null,"一次エネルギー消費量",null,null,null,null,"使用建材",null,null,"等級",null,"居室",null,null,null,null,"便所",null,null,null,"浴室",null,null,null,"台所",null,null,null,"単純開口率","北","東","南","西","真上","対策等級・相当スラブ厚の区別",null,null,null,"対策等級",null,null,null,"相当スラブ厚",null,null,null,"対策等級・レベル低減量の区別",null,null,null,"対策等級",null,null,null,"ﾚﾍﾞﾙ低減量",null,null,null,3,"4.外壁開口部",null,null,null,"高齢者等配慮(専用部分)","高齢者等配慮(共用部分)","住戸位置",null,null,"a",null,"b",null,"b",null,"c",null,"住戸位置",null,null,"a",null,"b(bⅰ)",null,"bⅱ",null,"c",null,"住戸位置",null,null,"a",null,"b(bⅰ)",null,"bⅱ",null,"c",null,"住戸位置",null,null,"a",null,"b(bⅰ)",null,"bⅱ",null,"c",null,"2-1選択","2-2選択","2-3選択","2-4選択","2-7選択","4-1選択","4-4選択","5-1選択","5-2選択","6-1選択","6-2選択","7-1選択","7-2選択","8-1選択","対策等級",null,null,null,"相当スラブ厚",null,null,null,"8-2選択","対策等級",null,null,null,"ﾚﾍﾞﾙ低減量",null,null,null,"8-3選択","8-4選択","9-1選択","9-2選択","10-1選択","10-2建物出入口の以外の階×表記","前処理（出入り口","前処理（開口部（共用部等）","前処理（開口部（バルコニー等）","前処理（その他開口部",null,null,null,null,null,null,null,null,null,"※通常非表示読込項目"]
[null,null,null,null,null,null,null,null,null,null,null,null,null,null,null,null,null,null,null,null,null,null,null,null,null,null,null,null,null,null,null,null,null,null,null,null,null,null,null,null,"種類",null,null,"種類",null,null,null,null,"地上･地下･その他","階","躯体天井高",null,"最も低い部分",null,null,null,null,"地上･地下･その他","階","躯体天井高",null,"最も低い部分",null,null,null,null,null,null,null,null,null,null,null,null,null,null,"外皮平均熱貫流率",null,"冷房期の平均日射熱取得率",null,null,null,"床面積当たりの設計一次エネルギー消費量",null,null,"製材等","特定建材","その他","内装材","天井裏等","機械換気","その他","その他内容",null,null,"該当なし","機械換気設備","換気のできる窓","なし","該当なし","機械換気設備","換気のできる窓","なし","該当なし","機械換気設備","換気のできる窓","なし",null,null,null,null,null,null,null,null,null,null,"上階",null,"下階",null,"上階",null,"下階",null,null,null,null,null,"上階",null,"下階",null,"上階",null,"下階",null,"界壁","北","東","南","西",null,null,"建物出入口の存する階","地下･地上･屋上","階数","出入口",null,"開口部（共用部等）",null,"開口部（バルコニー等）",null,"その他開口部",null,"建物出入口の存する階","地下･地上･屋上","階数","出入口",null,"開口部（共用部等）",null,"開口部（バルコニー等）",null,"その他開口部",null,"建物出入口の存する階","地下･地上･屋上","階数","出入口",null,"開口部（共用部等）",null,"開口部（バルコニー等）",null,"その他開口部",null,"建物出入口の存する階","地下･地上･屋上","階数","出入口",null,"開口部（共用部等）",null,"開口部（バルコニー等）",null,"その他開口部",null,null,null,null,null,null,null,null,null,null,null,null,null,null,null,"上階",null,"下階",null,"上階",null,"下階",null,null,"上階",null,"下階",null,"上階",null,"下階",null,null,null,null,null,null,null,null,null,null,null,null,null,null,null,null,null,null,null,null,"住棟の選択・非選択のチェックボックスの作成場所（必須のチェックボックスも含む）"]
[null,null,null,null,null,null,null,null,null,null,null,null,null,null,null,null,null,null,null,null,null,null,null,null,null,null,null,null,null,null,null,null,null,null,null,null,null,null,null,null,null,null,null,null,null,null,null,null,null,null,null,null,"部位",null,null,"内法高さ",null,null,null,null,null,"部位",null,null,"内法高さ",null,null,null,null,null,null,null,null,null,null,null,null,null,null,null,null,null,null,null,null,null,null,null,null,null,null,null,null,null,null,null,null,null,null,null,null,null,null,null,null,null,null,null,null,null,null,null,null,null,null,null,null,"最高","最低","最高","最低","最高","最低","最高","最低",null,null,null,null,"最高","最低","最高","最低","最高","最低","最高","最低",null,null,null,null,null,null,null,null,null,null,null,null,null,null,null,null,null,null,null,null,null,null,null,null,null,null,null,null,null,null,null,null,null,null,null,null,null,null,null,null,null,null,null,null,null,null,null,null,null,null,null,null,null,null,null,null,null,null,null,null,null,null,null,null,null,"最高","最低","最高","最低","最高","最低","最高","最低",null,"最高","最低","最高","最低","最高","最低","最高","最低",null,null,null,null,null,null,null,null,null,null,null,null,null,null,null,null,null,null,null,1,"1-1.",null,{"$f":"IF(OR(CL7=\"\"),\"\",1)","v":""},"2-5."]
[null,null,null,null,null,null,null,null,null,null,null,null,null,null,null,null,null,null,null,null,null,null,null,null,null,null,null,null,null,null,null,null,null,null,null,null,null,null,null,null,null,null,null,null,null,null,null,null,null,null,null,null,null,null,null,null,null,null,null,null,null,null,null,null,null,null,null,null,null,null,null,null,null,null,null,null,null,null,null,null,null,null,null,null,null,null,null,null,null,null,null,null,null,null,null,null,null,null,null,null,null,null,null,null,null,null,null,null,null,null,null,null,null,null,null,null,null,null,null,null,null,null,null,null,null,null,null,null,null,null,null,null,null,null,null,null,null,null,null,null,null,null,null,null,null,null,null,null,null,null,null,null,null,null,null,null,null,null,null,null,null,null,null,null,null,null,null,null,null,null,null,null,null,null,null,null,null,null,null,null,null,null,null,null,null,null,null,null,null,null,null,null,null,null,null,null,null,null,null,null,null,null,null,null,null,null,null,null,null,null,null,null,null,null,null,null,null,null,null,null,null,null,null,null,null,null,null,null,null,null,null,null,null,null,null,null,null,null,{"$f":"IF(OR(AB8=\"\"),\"\",1)","v":""},"1-2.",null,{"$f":"IF(OR(CL8=\"\"),\"\",1)","v":""},"2-6."]
[null,null,null,null,null,null,null,null,null,null,null,null,null,null,null,null,null,null,null,null,null,null,null,null,null,null,null,null,null,null,null,null,null,null,null,null,null,null,null,null,null,null,null,null,null,null,null,null,null,null,null,null,null,null,null,null,null,null,null,null,null,null,null,null,null,null,null,null,null,null,null,null,null,null,null,null,null,null,null,null,null,null,null,null,null,null,null,null,null,null,null,null,null,null,null,null,null,null,null,null,null,null,null,null,null,null,null,null,null,null,null,null,null,null,null,null,null,null,null,null,null,null,null,null,null,null,null,null,null,null,null,null,null,null,null,null,null,null,null,null,null,null,null,null,null,null,null,null,null,null,null,null,null,null,null,null,null,null,null,null,null,null,null,null,null,null,null,null,null,null,null,null,null,null,null,null,null,null,null,null,null,null,null,null,null,null,null,null,null,null,null,null,null,null,null,null,null,null,null,null,null,null,null,null,null,null,null,null,null,null,null,null,null,null,null,null,null,null,null,null,null,null,null,null,null,null,null,null,null,null,null,null,null,null,null,null,null,null,1,"1-3."]
[null,null,null,null,null,null,null,null,null,null,null,null,null,null,null,null,null,null,null,null,null,null,null,null,null,null,null,null,null,null,null,null,null,null,null,null,null,null,null,null,null,null,null,null,null,null,null,null,null,null,null,null,null,null,null,null,null,null,null,null,null,null,null,null,null,null,null,null,null,null,null,null,null,null,null,null,null,null,null,null,null,null,null,null,null,null,null,null,null,null,null,null,null,null,null,null,null,null,null,null,null,null,null,null,null,null,null,null,null,null,null,null,null,null,null,null,null,null,null,null,null,null,null,null,null,null,null,null,null,null,null,null,null,null,null,null,null,null,null,null,null,null,null,null,null,null,null,null,null,null,null,null,null,null,null,null,null,null,null,null,null,null,null,null,null,null,null,null,null,null,null,null,null,null,null,null,null,null,null,null,null,null,null,null,null,null,null,null,null,null,null,null,null,null,null,null,null,null,null,null,null,null,null,null,null,null,null,null,null,null,null,null,null,null,null,null,null,null,null,null,null,null,null,null,null,null,null,null,null,null,null,null,null,null,null,null,null,null,{"$f":"IF(OR(AB10=\"\"),\"\",1)","v":""},"1-4.",null,1,"3-1."]
[null,null,null,null,null,null,null,null,null,null,null,null,null,null,null,null,null,null,null,null,null,null,null,null,null,null,null,null,null,null,null,null,null,null,null,null,null,null,null,null,null,null,null,null,null,null,null,null,null,null,null,null,null,null,null,null,null,null,null,null,null,null,null,null,null,null,null,null,null,null,null,null,null,null,null,null,null,null,null,null,null,null,null,null,null,null,null,null,null,null,null,null,null,null,null,null,null,null,null,null,null,null,null,null,null,null,null,null,null,null,null,null,null,null,null,null,null,null,null,null,null,null,null,null,null,null,null,null,null,null,null,null,null,null,null,null,null,null,null,null,null,null,null,null,null,null,null,null,null,null,null,null,null,null,null,null,null,null,null,null,null,null,null,null,null,null,null,null,null,null,null,null,null,null,null,null,null,null,null,null,null,null,null,null,null,null,null,null,null,null,null,null,null,null,null,null,null,null,null,null,null,null,null,null,null,null,null,null,null,null,null,null,null,null,null,null,null,null,null,null,null,null,null,null,null,null,null,null,null,null,null,null,null,null,null,null,null,null,{"$f":"IF(AB11=\"\",\"\",1)","v":""},"1-5."]
[null,null,null,null,null,null,null,null,null,null,null,null,null,null,null,null,null,null,null,null,null,null,null,null,null,null,null,null,null,null,null,null,null,null,null,null,null,null,null,null,null,null,null,null,null,null,null,null,null,null,null,null,null,null,null,null,null,null,null,null,null,null,null,null,null,null,null,null,null,null,null,null,null,null,null,null,null,null,null,null,null,null,null,null,null,null,null,null,null,null,null,null,null,null,null,null,null,null,null,null,null,null,null,null,null,null,null,null,null,null,null,null,null,null,null,null,null,null,null,null,null,null,null,null,null,null,null,null,null,null,null,null,null,null,null,null,null,null,null,null,null,null,null,null,null,null,null,null,null,null,null,null,null,null,null,null,null,null,null,null,null,null,null,null,null,null,null,null,null,null,null,null,null,null,null,null,null,null,null,null,null,null,null,null,null,null,null,null,null,null,null,null,null,null,null,null,null,null,null,null,null,null,null,null,null,null,null,null,null,null,null,null,null,null,null,null,null,null,null,null,null,null,null,null,null,null,null,null,null,null,null,null,null,null,null,null,null,null,1,"1-6.",null,{"$f":"IF(OR(DD7=\"\"),\"\",1)","v":""},"4-2."]
[null,null,null,null,null,null,null,null,null,null,null,null,null,null,null,null,null,null,null,null,null,null,null,null,null,null,null,null,null,null,null,null,null,null,null,null,null,null,null,null,null,null,null,null,null,null,null,null,null,null,null,null,null,null,null,null,null,null,null,null,null,null,null,null,null,null,null,null,null,null,null,null,null,null,null,null,null,null,null,null,null,null,null,null,null,null,null,null,null,null,null,null,null,null,null,null,null,null,null,null,null,null,null,null,null,null,null,null,null,null,null,null,null,null,null,null,null,null,null,null,null,null,null,null,null,null,null,null,null,null,null,null,null,null,null,null,null,null,null,null,null,null,null,null,null,null,null,null,null,null,null,null,null,null,null,null,null,null,null,null,null,null,null,null,null,null,null,null,null,null,null,null,null,null,null,null,null,null,null,null,null,null,null,null,null,null,null,null,null,null,null,null,null,null,null,null,null,null,null,null,null,null,null,null,null,null,null,null,null,null,null,null,null,null,null,null,null,null,null,null,null,null,null,null,null,null,null,null,null,null,null,null,null,null,null,null,null,null,1,"1-7.",null,{"$f":"IF(OR(DD8=\"\"),\"\",1)","v":""},"4-3."]
[null,null,null,null,null,null,null,null,null,null,null,null,null,null,null,null,null,null,null,null,null,null,null,null,null,null,null,null,null,null,null,null,null,null,null,null,null,null,null,null,null,null,null,null,null,null,null,null,null,null,null,null,null,null,null,null,null,null,null,null,null,null,null,null,null,null,null,null,null,null,null,null,null,null,null,null,null,null,null,null,null,null,null,null,null,null,null,null,null,null,null,null,null,null,null,null,null,null,null,null,null,null,null,null,null,null,null,null,null,null,null,null,null,null,null,null,null,null,null,null,null,"[0a|e]","[0a|e]","[0a|e]","[0a|e]",null,null,null,null,null,null,null,null,"[0a|e]","[0a|e]","[0a|e]","[0a|e]",null,null,null,null,null,null,null,null,null,null,null,null,null,null,null,null,null,null,null,null,null,null,null,null,null,null,null,null,null,null,null,null,null,null,null,null,null,null,null,null,null,null,null,null,null,null,null,null,null,null,null,null,null,null,null,null,null,null,null,null,null,null,null,null,null,null,null,null,null,"[0a|e]","[0a|e]","[0a|e]","[0a|e]",null,null,null,null,null,"[0a|e]","[0a|e]","[0a|e]","[0a|e]"]
[null,null,null,null,null,null,null,null,null,null,null,null,null,null,null,null,null,null,null,null,null,null,null,null,"[1|4]","[0|4]",null,null,null,null,null,null,null,null,null,"[1|3]",null,null,null,null,null,null,null,null,null,"[0|4]","[0|3]",null,null,null,null,null,null,null,null,null,null,null,null,null,null,null,null,null,null,null,null,null,null,null,null,null,"地域区分","[1|4]","地域区分","[1|7]",null,null,null,null,"地域区分","[1 4 5 6]",null,null,null,null,null,null,"[0|3]","[023]",null,null,null,null,null,null,null,null,null,null,null,null,null,null,null,null,null,"％以上","％以上","％以上","％以上","％以上","％以上",null,null,null,null,"[0|5]","[0|5]","[0|5]","[0|5]",null,null,null,null,null,null,null,null,"[0|5]","[0|5]","[0|5]","[0|5]",null,null,null,null,"[0|4]","[0|3]","[0|3]","[0|3]","[0|3]","[1|5]","[0|5]",null,null,null,null,null,null,null,null,null,null,null,null,null,null,null,null,null,null,null,null,null,null,null,null,null,null,null,null,null,null,null,null,null,null,null,null,null,null,null,null,null,null,null,null,null,null,null,null,null,null,null,null,null,null,null,null,null,null,"[0|5]","[0|5]","[0|5]","[0|5]",null,null,null,null,null,"[0|5]","[0|5]","[0|5]","[0|5]"]
[]
[null,null,null,null,null,null,null,null,null,null,null,null,null,null,null,null,null,null,null,null,null,null,null,null,null,null,null,null,null,null,null,null,null,null,null,null,null,null,null,null,null,null,null,null,null,null,null,null,null,null,null,null,null,null,null,null,null,null,null,null,null,null,null,null,null,null,null,null,null,null,null,null,null,null,null,null,"ＵＡ",null,"ηＡ",null,null,null,"MJ/㎡・年"]
[]
[{"$f":" ROW(A34) - ROW(_row) + 1","v":0},null,null,{"$f":"IF(B34=\"\",\"\",B34)","v":""},null,null,null,null,null,null,null,null,null,null,null,null,null,null,null,null,null,null,null,null,null,null,null,null,null,null,null,null,null,null,null,null,null,null,null,null,null,null,null,null,null,null,null,null,null,{"$f":"IF(GM34=1,IF(F34=\"\",\"\",F34),\"\")","v":""},null,null,null,null,null,null,null,null,null,null,null,null,null,null,null,null,null,null,null,null,null,null,null,null,null,null,null,null,null,null,null,null,null,null,null,null,null,null,null,null,null,null,null,null,null,null,null,null,null,null,null,null,null,null,null,null,null,null,null,null,null,null,null,null,null,null,null,null,null,null,null,null,null,null,null,null,null,null,null,null,null,null,null,null,null,null,null,null,null,null,null,null,null,null,null,null,{"$f":"IF(F34=\"\",\"\",F34)","v":""},null,null,null,null,null,null,null,null,{"$f":"IF(HQ34=\"\",\"\",HQ34)","v":""},null,{"$f":"IF(OR(IF(OR(FC34=\"\",FC34=\"無し\"),\"\",1)=1,IF(OR(FE34=\"\",FE34=\"無し\"),\"\",1)=1,IF(OR(FG34=\"\",FG34=\"無し\"),\"\",1)=1,IF(OR(FI34=\"\",FI34=\"無し\"),\"\",1)=1),IF(F34=\"\",\"\",F34),\"\")","v":""},null,null,null,null,null,null,null,null,null,null,{"$f":"IF(OR(IF(OR(FN34=\"\",FN34=\"無し\"),\"\",1)=1,IF(OR(FP34=\"\",FP34=\"無し\"),\"\",1)=1,IF(OR(FR34=\"\",FR34=\"無し\"),\"\",1)=1,IF(OR(FT34=\"\",FT34=\"無し\"),\"\",1)=1),IF(F34=\"\",\"\",F34),\"\")","v":""},null,null,null,null,null,null,null,null,null,null,{"$f":"IF(OR(IF(OR(FY34=\"\",FY34=\"無し\"),\"\",1)=1,IF(OR(GA34=\"\",GA34=\"無し\"),\"\",1)=1,IF(OR(GC34=\"\",GC34=\"無し\"),\"\",1)=1,IF(OR(GE34=\"\",GE34=\"無し\"),\"\",1)=1),IF(F34=\"\",\"\",F34),\"\")","v":""},null,null,null,null,null,null,null,null,{"$f":"IF(Y34<>\"\",1,\"\")","v":""},{"$f":"IF(Z34<>\"\",1,\"\")","v":""},{"$f":"IF(OR(AA34=\"○\",AB34<>\"\",AG34<>\"\",AJ34<>\"\"),1,\"\")","v":""},{"$f":"IF(OR(AK34=\"○\",AL34=\"○\",AM34=\"○\",AN34=\"○\",AQ34=\"○\"),1,\"\")","v":""},{"$f":"IF(AT34<>\"\",1,\"\")","v":""},1,{"$f":"IF(OR(AV34=\"○\",AY34<>\"\",BA34=\"はり\",BA34=\"傾斜屋根\",BA34=\"その他\",BD34<>\"\"),1,\"\")","v":""},1,1,{"$f":"IF(OR(CH34=\"○\",CI34=\"○\",CJ34=\"○\",CK34=1,CK34=2,CK34=3,CL34=1,CL34=2,CL34=3),1,\"\")","v":""},{"$f":"IF(OR(CM34=\"○\",CN34=\"○\",CS34=\"○\",CT34=\"○\",CW34=\"○\",CX34=\"○\",DA34=\"○\",DB34=\"○\"),1,\"\")","v":""},{"$f":"IF(DD34=\"\",\"\",1)","v":""},{"$f":"IF(OR(DE34<>\"\",DF34<>\"\",DG34<>\"\",DH34<>\"\",DI34<>\"\"),1,\"\")","v":""},{"$f":"IF(OR(GU34=1,GV34=1,GW34=1,GX34=1,GY34=1,GZ34=1,HA34=1,HB34=1),\"○\",\"\")","v":""},{"$f":"IF(OR(DN34=\"\",DN34=0),\"\",1)","v":""},{"$f":"IF(OR(DO34=\"\",DO34=0),\"\",1)","v":""},{"$f":"IF(OR(DP34=\"\",DP34=0),\"\",1)","v":""},{"$f":"IF(OR(DQ34=\"\",DQ34=0),\"\",1)","v":""},{"$f":"IF(OR(DR34=\"\",DR34=0),\"\",1)","v":""},{"$f":"IF(OR(DS34=\"\",DS34=0),\"\",1)","v":""},{"$f":"IF(OR(DT34=\"\",DT34=0),\"\",1)","v":""},{"$f":"IF(OR(DU34=\"\",DU34=0),\"\",1)","v":""},{"$f":"IF(OR(HD34=1,HE34=1,HF34=1,HG34=1,HI34=1,HH34=1,HJ34=1,HK34=1),\"○\",\"\")","v":""},{"$f":"IF(OR(DZ34=\"\",DZ34=0),\"\",1)","v":""},{"$f":"IF(OR(EA34=\"\",EA34=0),\"\",1)","v":""},{"$f":"IF(OR(EB34=\"\",EB34=0),\"\",1)","v":""},{"$f":"IF(OR(EC34=\"\",EC34=0),\"\",1)","v":""},{"$f":"IF(OR(ED34=\"\",ED34=0),\"\",1)","v":""},{"$f":"IF(OR(EE34=\"\",EE34=0),\"\",1)","v":""},{"$f":"IF(OR(EF34=\"\",EF34=0),\"\",1)","v":""},{"$f":"IF(OR(EG34=\"\",EG34=0),\"\",1)","v":""},{"$f":"IF(EH34=\"\",\"\",\"○\")","v":""},{"$f":"IF(OR(EI34=1,EI34=2,EI34=3),\"○\",IF(OR(EJ34=1,EJ34=2,EJ34=3),\"○\",IF(OR(EK34=1,EK34=2,EK34=3),\"○\",IF(OR(EL34=1,EL34=2,EL34=3),\"○\",\"\"))))","v":""},{"$f":"IF(EM34=\"\",\"\",1)","v":""},{"$f":"IF(OR(EN34=\"\"),\"\",1)","v":""},{"$f":"IF(OR(HR34=1,HS34=1,HT34=1,HU34=1),1,\"\")","v":""},{"$f":"IF(AND(FA34=\"\",FB34=\"\",FC34=\"\",FE34=\"\",FG34=\"\",FI34=\"\"),\"\",\"×\")","v":""},{"$f":"IF(AND(OR(ER34=\"\",ER34=\"無し\"),OR(FC34=\"\",FC34=\"無し\")),\"\",1)","v":""},{"$f":"IF(AND(OR(ET34=\"\",ET34=\"無し\"),OR(FE34=\"\",FE34=\"無し\")),\"\",1)","v":""},{"$f":"IF(OR(FG34=\"\",FG34=\"無し\"),\"\",1)","v":""},{"$f":"IF(AND(OR(EX34=\"\",EX34=\"無し\"),OR(FI34=\"\",FI34=\"無し\")),\"\",1)","v":""}]
[1,null,null,{"$f":"IF(B35=\"\",\"\",B35)","v":""},null,null,null,null,null,null,null,null,null,null,null,null,null,null,null,null,null,null,null,null,null,null,null,null,null,null,null,null,null,null,null,null,null,null,null,null,null,null,null,null,null,null,null,null,null,"",null,null,null,null,null,null,null,null,null,null,null,null,null,null,null,null,null,null,null,null,null,null,null,null,null,null,null,null,null,null,null,null,null,null,null,null,null,null,null,null,null,null,null,null,null,null,null,null,null,null,null,null,null,null,null,null,null,null,null,null,null,null,null,null,null,null,null,null,null,null,null,null,null,null,null,null,null,null,null,null,null,null,null,null,null,null,null,null,null,null,null,null,null,null,null,null,"",null,null,null,null,null,null,null,null,{"$f":"IF(HQ35=\"\",\"\",HQ35)","v":""},null,"",null,null,null,null,null,null,null,null,null,null,"",null,null,null,null,null,null,null,null,null,null,"",null,null,null,null,null,null,null,null,{"$f":"IF(Y35<>\"\",1,\"\")","v":""},"",{"$f":"IF(OR(AA35=\"○\",AB35<>\"\",AG35<>\"\",AJ35<>\"\"),1,\"\")","v":""},{"$f":"IF(OR(AK35=\"○\",AL35=\"○\",AM35=\"○\",AN35=\"○\",AQ35=\"○\"),1,\"\")","v":""},{"$f":"IF(AT35<>\"\",1,\"\")","v":""},1,{"$f":"IF(OR(AV35=\"○\",AY35<>\"\",BA35=\"はり\",BA35=\"傾斜屋根\",BA35=\"その他\",BD35<>\"\"),1,\"\")","v":""},1,1,{"$f":"IF(OR(CH35=\"○\",CI35=\"○\",CJ35=\"○\",CK35=1,CK35=2,CK35=3,CL35=1,CL35=2,CL35=3),1,\"\")","v":""},{"$f":"IF(OR(CM35=\"○\",CN35=\"○\",CS35=\"○\",CT35=\"○\",CW35=\"○\",CX35=\"○\",DA35=\"○\",DB35=\"○\"),1,\"\")","v":""},{"$f":"IF(DD35=\"\",\"\",1)","v":""},{"$f":"IF(OR(DE35<>\"\",DF35<>\"\",DG35<>\"\",DH35<>\"\",DI35<>\"\"),1,\"\")","v":""},{"$f":"IF(OR(GU35=1,GV35=1,GW35=1,GX35=1,GY35=1,GZ35=1,HA35=1,HB35=1),\"○\",\"\")","v":""},{"$f":"IF(OR(DN35=\"\",DN35=0),\"\",1)","v":""},"","","","","","","",{"$f":"IF(OR(HD35=1,HE35=1,HF35=1,HG35=1,HI35=1,HH35=1,HJ35=1,HK35=1),\"○\",\"\")","v":""},{"$f":"IF(OR(DZ35=\"\",DZ35=0),\"\",1)","v":""},{"$f":"IF(OR(EA35=\"\",EA35=0),\"\",1)","v":""},"","","","","","",{"$f":"IF(EH35=\"\",\"\",\"○\")","v":""},{"$f":"IF(OR(EI35=1,EI35=2,EI35=3),\"○\",IF(OR(EJ35=1,EJ35=2,EJ35=3),\"○\",IF(OR(EK35=1,EK35=2,EK35=3),\"○\",IF(OR(EL35=1,EL35=2,EL35=3),\"○\",\"\"))))","v":""},{"$f":"IF(EM35=\"\",\"\",1)","v":""},{"$f":"IF(OR(EN35=\"\"),\"\",1)","v":""},{"$f":"IF(OR(HR35=1,HS35=1,HT35=1,HU35=1),1,\"\")","v":""},{"$f":"IF(AND(FA35=\"\",FB35=\"\",FC35=\"\",FE35=\"\",FG35=\"\",FI35=\"\"),\"\",\"×\")","v":""},{"$f":"IF(AND(OR(ER35=\"\",ER35=\"無し\"),OR(FC35=\"\",FC35=\"無し\")),\"\",1)","v":""},{"$f":"IF(AND(OR(ET35=\"\",ET35=\"無し\"),OR(FE35=\"\",FE35=\"無し\")),\"\",1)","v":""},{"$f":"IF(OR(FG35=\"\",FG35=\"無し\"),\"\",1)","v":""},{"$f":"IF(AND(OR(EX35=\"\",EX35=\"無し\"),OR(FI35=\"\",FI35=\"無し\")),\"\",1)","v":""}]
[2,null,null,{"$f":"IF(B36=\"\",\"\",B36)","v":""},null,null,null,null,null,null,null,null,null,null,null,null,null,null,null,null,null,null,null,null,null,null,null,null,null,null,null,null,null,null,null,null,null,null,null,null,null,null,null,null,null,null,null,null,null,"",null,null,null,null,null,null,null,null,null,null,null,null,null,null,null,null,null,null,null,null,null,null,null,null,null,null,null,null,null,null,null,null,null,null,null,null,null,null,null,null,null,null,null,null,null,null,null,null,null,null,null,null,null,null,null,null,null,null,null,null,null,null,null,null,null,null,null,null,null,null,null,null,null,null,null,null,null,null,null,null,null,null,null,null,null,null,null,null,null,null,null,null,null,null,null,null,"",null,null,null,null,null,null,null,null,{"$f":"IF(HQ36=\"\",\"\",HQ36)","v":""},null,"",null,null,null,null,null,null,null,null,null,null,"",null,null,null,null,null,null,null,null,null,null,"",null,null,null,null,null,null,null,null,{"$f":"IF(Y36<>\"\",1,\"\")","v":""},{"$f":"IF(Z36<>\"\",1,\"\")","v":""},{"$f":"IF(OR(AA36=\"○\",AB36<>\"\",AG36<>\"\",AJ36<>\"\"),1,\"\")","v":""},"",{"$f":"IF(AT36<>\"\",1,\"\")","v":""},1,{"$f":"IF(OR(AV36=\"○\",AY36<>\"\",BA36=\"はり\",BA36=\"傾斜屋根\",BA36=\"その他\",BD36<>\"\"),1,\"\")","v":""},1,1,{"$f":"IF(OR(CH36=\"○\",CI36=\"○\",CJ36=\"○\",CK36=1,CK36=2,CK36=3,CL36=1,CL36=2,CL36=3),1,\"\")","v":""},{"$f":"IF(OR(CM36=\"○\",CN36=\"○\",CS36=\"○\",CT36=\"○\",CW36=\"○\",CX36=\"○\",DA36=\"○\",DB36=\"○\"),1,\"\")","v":""},{"$f":"IF(DD36=\"\",\"\",1)","v":""},{"$f":"IF(OR(DE36<>\"\",DF36<>\"\",DG36<>\"\",DH36<>\"\",DI36<>\"\"),1,\"\")","v":""},{"$f":"IF(OR(GU36=1,GV36=1,GW36=1,GX36=1,GY36=1,GZ36=1,HA36=1,HB36=1),\"○\",\"\")","v":""},{"$f":"IF(OR(DN36=\"\",DN36=0),\"\",1)","v":""},{"$f":"IF(OR(DO36=\"\",DO36=0),\"\",1)","v":""},{"$f":"IF(OR(DP36=\"\",DP36=0),\"\",1)","v":""},{"$f":"IF(OR(DQ36=\"\",DQ36=0),\"\",1)","v":""},{"$f":"IF(OR(DR36=\"\",DR36=0),\"\",1)","v":""},{"$f":"IF(OR(DS36=\"\",DS36=0),\"\",1)","v":""},{"$f":"IF(OR(DT36=\"\",DT36=0),\"\",1)","v":""},{"$f":"IF(OR(DU36=\"\",DU36=0),\"\",1)","v":""},{"$f":"IF(OR(HD36=1,HE36=1,HF36=1,HG36=1,HI36=1,HH36=1,HJ36=1,HK36=1),\"○\",\"\")","v":""},{"$f":"IF(OR(DZ36=\"\",DZ36=0),\"\",1)","v":""},{"$f":"IF(OR(EA36=\"\",EA36=0),\"\",1)","v":""},{"$f":"IF(OR(EB36=\"\",EB36=0),\"\",1)","v":""},{"$f":"IF(OR(EC36=\"\",EC36=0),\"\",1)","v":""},{"$f":"IF(OR(ED36=\"\",ED36=0),\"\",1)","v":""},{"$f":"IF(OR(EE36=\"\",EE36=0),\"\",1)","v":""},{"$f":"IF(OR(EF36=\"\",EF36=0),\"\",1)","v":""},{"$f":"IF(OR(EG36=\"\",EG36=0),\"\",1)","v":""},"",{"$f":"IF(OR(EI36=1,EI36=2,EI36=3),\"○\",IF(OR(EJ36=1,EJ36=2,EJ36=3),\"○\",IF(OR(EK36=1,EK36=2,EK36=3),\"○\",IF(OR(EL36=1,EL36=2,EL36=3),\"○\",\"\"))))","v":""},"",{"$f":"IF(OR(EN36=\"\"),\"\",1)","v":""},"",{"$f":"IF(AND(FA36=\"\",FB36=\"\",FC36=\"\",FE36=\"\",FG36=\"\",FI36=\"\"),\"\",\"×\")","v":""},{"$f":"IF(AND(OR(ER36=\"\",ER36=\"無し\"),OR(FC36=\"\",FC36=\"無し\")),\"\",1)","v":""},{"$f":"IF(AND(OR(ET36=\"\",ET36=\"無し\"),OR(FE36=\"\",FE36=\"無し\")),\"\",1)","v":""},{"$f":"IF(OR(FG36=\"\",FG36=\"無し\"),\"\",1)","v":""},{"$f":"IF(AND(OR(EX36=\"\",EX36=\"無し\"),OR(FI36=\"\",FI36=\"無し\")),\"\",1)","v":""}]
[3,null,null,{"$f":"IF(B37=\"\",\"\",B37)","v":""},null,null,null,null,null,null,null,null,null,null,null,null,null,null,null,null,null,null,null,null,null,null,null,null,null,null,null,null,null,null,null,null,null,null,null,null,null,null,null,null,null,null,null,null,null,"",null,null,null,null,null,null,null,null,null,null,null,null,null,null,null,null,null,null,null,null,null,null,null,null,null,null,null,null,null,null,null,null,null,null,null,null,null,null,null,null,null,null,null,null,null,null,null,null,null,null,null,null,null,null,null,null,null,null,null,null,null,null,null,null,null,null,null,null,null,null,null,null,null,null,null,null,null,null,null,null,null,null,null,null,null,null,null,null,null,null,null,null,null,null,null,null,"",null,null,null,null,null,null,null,null,"",null,"",null,null,null,null,null,null,null,null,null,null,"",null,null,null,null,null,null,null,null,null,null,"",null,null,null,null,null,null,null,null,"","",{"$f":"IF(OR(AA37=\"○\",AB37<>\"\",AG37<>\"\",AJ37<>\"\"),1,\"\")","v":""},"","",1,{"$f":"IF(OR(AV37=\"○\",AY37<>\"\",BA37=\"はり\",BA37=\"傾斜屋根\",BA37=\"その他\",BD37<>\"\"),1,\"\")","v":""},1,1,{"$f":"IF(OR(CH37=\"○\",CI37=\"○\",CJ37=\"○\",CK37=1,CK37=2,CK37=3,CL37=1,CL37=2,CL37=3),1,\"\")","v":""},"","","","","","","","","","","","","","","","","","","","","","","","","","","","","","",""]
[4,null,null,"",null,null,null,null,null,null,null,null,null,null,null,null,null,null,null,null,null,null,null,null,null,null,null,null,null,null,null,null,null,null,null,null,null,null,null,null,null,null,null,null,null,null,null,null,null,"",null,null,null,null,null,null,null,null,null,null,null,null,null,null,null,null,null,null,null,null,null,null,null,null,null,null,null,null,null,null,null,null,null,null,null,null,null,null,null,null,null,null,null,null,null,null,null,null,null,null,null,null,null,null,null,null,null,null,null,null,null,null,null,null,null,null,null,null,null,null,null,null,null,null,null,null,null,null,null,null,null,null,null,null,null,null,null,null,null,null,null,null,null,null,null,null,"",null,null,null,null,null,null,null,null,"",null,"",null,null,null,null,null,null,null,null,null,null,"",null,null,null,null,null,null,null,null,null,null,"",null,null,null,null,null,null,null,null,"","","","","",1,{"$f":"IF(OR(AV38=\"○\",AY38<>\"\",BA38=\"はり\",BA38=\"傾斜屋根\",BA38=\"その他\",BD38<>\"\"),1,\"\")","v":""},1,1,"","","","","","","","","","","","","","","","","","","","","","","","","","","","","","","",""]
[5,null,null,"",null,null,null,null,null,null,null,null,null,null,null,null,null,null,null,null,null,null,null,null,null,null,null,null,null,null,null,null,null,null,null,null,null,null,null,null,null,null,null,null,null,null,null,null,null,"",null,null,null,null,null,null,null,null,null,null,null,null,null,null,null,null,null,null,null,null,null,null,null,null,null,null,null,null,null,null,null,null,null,null,null,null,null,null,null,null,null,null,null,null,null,null,null,null,null,null,null,null,null,null,null,null,null,null,null,null,null,null,null,null,null,null,null,null,null,null,null,null,null,null,null,null,null,null,null,null,null,null,null,null,null,null,null,null,null,null,null,null,null,null,null,null,"",null,null,null,null,null,null,null,null,"",null,"",null,null,null,null,null,null,null,null,null,null,"",null,null,null,null,null,null,null,null,null,null,"",null,null,null,null,null,null,null,null,"","","","","",1,{"$f":"IF(OR(AV39=\"○\",AY39<>\"\",BA39=\"はり\",BA39=\"傾斜屋根\",BA39=\"その他\",BD39<>\"\"),1,\"\")","v":""},1,1,"","","","","","","","","","","","","","","","","","","","","","","","","","","","","","","",""]
[6,null,null,"",null,null,null,null,null,null,null,null,null,null,null,null,null,null,null,null,null,null,null,null,null,null,null,null,null,null,null,null,null,null,null,null,null,null,null,null,null,null,null,null,null,null,null,null,null,"",null,null,null,null,null,null,null,null,null,null,null,null,null,null,null,null,null,null,null,null,null,null,null,null,null,null,null,null,null,null,null,null,null,null,null,null,null,null,null,null,null,null,null,null,null,null,null,null,null,null,null,null,null,null,null,null,null,null,null,null,null,null,null,null,null,null,null,null,null,null,null,null,null,null,null,null,null,null,null,null,null,null,null,null,null,null,null,null,null,null,null,null,null,null,null,null,"",null,null,null,null,null,null,null,null,"",null,"",null,null,null,null,null,null,null,null,null,null,"",null,null,null,null,null,null,null,null,null,null,"",null,null,null,null,null,null,null,null,"","","","","",1,"",1,1,"","","","","","","","","","","","","","","","","","","","","","","","","","","","","","","",""]
[7,null,null,"",null,null,null,null,null,null,null,null,null,null,null,null,null,null,null,null,null,null,null,null,null,null,null,null,null,null,null,null,null,null,null,null,null,null,null,null,null,null,null,null,null,null,null,null,null,"",null,null,null,null,null,null,null,null,null,null,null,null,null,null,null,null,null,null,null,null,null,null,null,null,null,null,null,null,null,null,null,null,null,null,null,null,null,null,null,null,null,null,null,null,null,null,null,null,null,null,null,null,null,null,null,null,null,null,null,null,null,null,null,null,null,null,null,null,null,null,null,null,null,null,null,null,null,null,null,null,null,null,null,null,null,null,null,null,null,null,null,null,null,null,null,null,"",null,null,null,null,null,null,null,null,"",null,"",null,null,null,null,null,null,null,null,null,null,"",null,null,null,null,null,null,null,null,null,null,"",null,null,null,null,null,null,null,null,"","","","","",1,"",1,1,"","","","","","","","","","","","","","","","","","","","","","","","","","","","","","","",""]
[8,null,null,"",null,null,null,null,null,null,null,null,null,null,null,null,null,null,null,null,null,null,null,null,null,null,null,null,null,null,null,null,null,null,null,null,null,null,null,null,null,null,null,null,null,null,null,null,null,"",null,null,null,null,null,null,null,null,null,null,null,null,null,null,null,null,null,null,null,null,null,null,null,null,null,null,null,null,null,null,null,null,null,null,null,null,null,null,null,null,null,null,null,null,null,null,null,null,null,null,null,null,null,null,null,null,null,null,null,null,null,null,null,null,null,null,null,null,null,null,null,null,null,null,null,null,null,null,null,null,null,null,null,null,null,null,null,null,null,null,null,null,null,null,null,null,"",null,null,null,null,null,null,null,null,"",null,"",null,null,null,null,null,null,null,null,null,null,"",null,null,null,null,null,null,null,null,null,null,"",null,null,null,null,null,null,null,null,"","","","","",1,"",1,1,"","","","","","","","","","","","","","","","","","","","","","","","","","","","","","","",""]
[9,null,null,"",null,null,null,null,null,null,null,null,null,null,null,null,null,null,null,null,null,null,null,null,null,null,null,null,null,null,null,null,null,null,null,null,null,null,null,null,null,null,null,null,null,null,null,null,null,"",null,null,null,null,null,null,null,null,null,null,null,null,null,null,null,null,null,null,null,null,null,null,null,null,null,null,null,null,null,null,null,null,null,null,null,null,null,null,null,null,null,null,null,null,null,null,null,null,null,null,null,null,null,null,null,null,null,null,null,null,null,null,null,null,null,null,null,null,null,null,null,null,null,null,null,null,null,null,null,null,null,null,null,null,null,null,null,null,null,null,null,null,null,null,null,null,"",null,null,null,null,null,null,null,null,"",null,"",null,null,null,null,null,null,null,null,null,null,"",null,null,null,null,null,null,null,null,null,null,"",null,null,null,null,null,null,null,null,"","","","","",1,"",1,1,"","","","","","","","","","","","","","","","","","","","","","","","","","","","","","","",""]
[10,null,null,"",null,null,null,null,null,null,null,null,null,null,null,null,null,null,null,null,null,null,null,null,null,null,null,null,null,null,null,null,null,null,null,null,null,null,null,null,null,null,null,null,null,null,null,null,null,"",null,null,null,null,null,null,null,null,null,null,null,null,null,null,null,null,null,null,null,null,null,null,null,null,null,null,null,null,null,null,null,null,null,null,null,null,null,null,null,null,null,null,null,null,null,null,null,null,null,null,null,null,null,null,null,null,null,null,null,null,null,null,null,null,null,null,null,null,null,null,null,null,null,null,null,null,null,null,null,null,null,null,null,null,null,null,null,null,null,null,null,null,null,null,null,null,"",null,null,null,null,null,null,null,null,"",null,"",null,null,null,null,null,null,null,null,null,null,"",null,null,null,null,null,null,null,null,null,null,"",null,null,null,null,null,null,null,null,"","","","","",1,"",1,1,"","","","","","","","","","","","","","","","","","","","","","","","","","","","","","","",""]
[11,null,null,"",null,null,null,null,null,null,null,null,null,null,null,null,null,null,null,null,null,null,null,null,null,null,null,null,null,null,null,null,null,null,null,null,null,null,null,null,null,null,null,null,null,null,null,null,null,"",null,null,null,null,null,null,null,null,null,null,null,null,null,null,null,null,null,null,null,null,null,null,null,null,null,null,null,null,null,null,null,null,null,null,null,null,null,null,null,null,null,null,null,null,null,null,null,null,null,null,null,null,null,null,null,null,null,null,null,null,null,null,null,null,null,null,null,null,null,null,null,null,null,null,null,null,null,null,null,null,null,null,null,null,null,null,null,null,null,null,null,null,null,null,null,null,"",null,null,null,null,null,null,null,null,"",null,"",null,null,null,null,null,null,null,null,null,null,"",null,null,null,null,null,null,null,null,null,null,"",null,null,null,null,null,null,null,null,"","","","","",1,"",1,1,"","","","","","","","","","","","","","","","","","","","","","","","","","","","","","","",""]
[12,null,null,"",null,null,null,null,null,null,null,null,null,null,null,null,null,null,null,null,null,null,null,null,null,null,null,null,null,null,null,null,null,null,null,null,null,null,null,null,null,null,null,null,null,null,null,null,null,"",null,null,null,null,null,null,null,null,null,null,null,null,null,null,null,null,null,null,null,null,null,null,null,null,null,null,null,null,null,null,null,null,null,null,null,null,null,null,null,null,null,null,null,null,null,null,null,null,null,null,null,null,null,null,null,null,null,null,null,null,null,null,null,null,null,null,null,null,null,null,null,null,null,null,null,null,null,null,null,null,null,null,null,null,null,null,null,null,null,null,null,null,null,null,null,null,"",null,null,null,null,null,null,null,null,"",null,"",null,null,null,null,null,null,null,null,null,null,"",null,null,null,null,null,null,null,null,null,null,"",null,null,null,null,null,null,null,null,"","","","","",1,"",1,1,"","","","","","","","","","","","","","","","","","","","","","","","","","","","","","","",""]
[13,null,null,"",null,null,null,null,null,null,null,null,null,null,null,null,null,null,null,null,null,null,null,null,null,null,null,null,null,null,null,null,null,null,null,null,null,null,null,null,null,null,null,null,null,null,null,null,null,"",null,null,null,null,null,null,null,null,null,null,null,null,null,null,null,null,null,null,null,null,null,null,null,null,null,null,null,null,null,null,null,null,null,null,null,null,null,null,null,null,null,null,null,null,null,null,null,null,null,null,null,null,null,null,null,null,null,null,null,null,null,null,null,null,null,null,null,null,null,null,null,null,null,null,null,null,null,null,null,null,null,null,null,null,null,null,null,null,null,null,null,null,null,null,null,null,"",null,null,null,null,null,null,null,null,"",null,"",null,null,null,null,null,null,null,null,null,null,"",null,null,null,null,null,null,null,null,null,null,"",null,null,null,null,null,null,null,null,"","","","","",1,"",1,1,"","","","","","","","","","","","","","","","","","","","","","","","","","","","","","","",""]
[14,null,null,"",null,null,null,null,null,null,null,null,null,null,null,null,null,null,null,null,null,null,null,null,null,null,null,null,null,null,null,null,null,null,null,null,null,null,null,null,null,null,null,null,null,null,null,null,null,"",null,null,null,null,null,null,null,null,null,null,null,null,null,null,null,null,null,null,null,null,null,null,null,null,null,null,null,null,null,null,null,null,null,null,null,null,null,null,null,null,null,null,null,null,null,null,null,null,null,null,null,null,null,null,null,null,null,null,null,null,null,null,null,null,null,null,null,null,null,null,null,null,null,null,null,null,null,null,null,null,null,null,null,null,null,null,null,null,null,null,null,null,null,null,null,null,"",null,null,null,null,null,null,null,null,"",null,"",null,null,null,null,null,null,null,null,null,null,"",null,null,null,null,null,null,null,null,null,null,"",null,null,null,null,null,null,null,null,"","","","","",1,"",1,1,"","","","","","","","","","","","","","","","","","","","","","","","","","","","","","","",""]
[15,null,null,"",null,null,null,null,null,null,null,null,null,null,null,null,null,null,null,null,null,null,null,null,null,null,null,null,null,null,null,null,null,null,null,null,null,null,null,null,null,null,null,null,null,null,null,null,null,"",null,null,null,null,null,null,null,null,null,null,null,null,null,null,null,null,null,null,null,null,null,null,null,null,null,null,null,null,null,null,null,null,null,null,null,null,null,null,null,null,null,null,null,null,null,null,null,null,null,null,null,null,null,null,null,null,null,null,null,null,null,null,null,null,null,null,null,null,null,null,null,null,null,null,null,null,null,null,null,null,null,null,null,null,null,null,null,null,null,null,null,null,null,null,null,null,"",null,null,null,null,null,null,null,null,"",null,"",null,null,null,null,null,null,null,null,null,null,"",null,null,null,null,null,null,null,null,null,null,"",null,null,null,null,null,null,null,null,"","","","","",1,"",1,1,"","","","","","","","","","","","","","","","","","","","","","","","","","","","","","","",""]
[16,null,null,"",null,null,null,null,null,null,null,null,null,null,null,null,null,null,null,null,null,null,null,null,null,null,null,null,null,null,null,null,null,null,null,null,null,null,null,null,null,null,null,null,null,null,null,null,null,"",null,null,null,null,null,null,null,null,null,null,null,null,null,null,null,null,null,null,null,null,null,null,null,null,null,null,null,null,null,null,null,null,null,null,null,null,null,null,null,null,null,null,null,null,null,null,null,null,null,null,null,null,null,null,null,null,null,null,null,null,null,null,null,null,null,null,null,null,null,null,null,null,null,null,null,null,null,null,null,null,null,null,null,null,null,null,null,null,null,null,null,null,null,null,null,null,"",null,null,null,null,null,null,null,null,"",null,"",null,null,null,null,null,null,null,null,null,null,"",null,null,null,null,null,null,null,null,null,null,"",null,null,null,null,null,null,null,null,"","","","","",1,"",1,1,"","","","","","","","","","","","","","","","","","","","","","","","","","","","","","","",""]
[17,null,null,"",null,null,null,null,null,null,null,null,null,null,null,null,null,null,null,null,null,null,null,null,null,null,null,null,null,null,null,null,null,null,null,null,null,null,null,null,null,null,null,null,null,null,null,null,null,"",null,null,null,null,null,null,null,null,null,null,null,null,null,null,null,null,null,null,null,null,null,null,null,null,null,null,null,null,null,null,null,null,null,null,null,null,null,null,null,null,null,null,null,null,null,null,null,null,null,null,null,null,null,null,null,null,null,null,null,null,null,null,null,null,null,null,null,null,null,null,null,null,null,null,null,null,null,null,null,null,null,null,null,null,null,null,null,null,null,null,null,null,null,null,null,null,"",null,null,null,null,null,null,null,null,"",null,"",null,null,null,null,null,null,null,null,null,null,"",null,null,null,null,null,null,null,null,null,null,"",null,null,null,null,null,null,null,null,"","","","","",1,"",1,1,"","","","","","","","","","","","","","","","","","","","","","","","","","","","","","","",""]
[18,null,null,"",null,null,null,null,null,null,null,null,null,null,null,null,null,null,null,null,null,null,null,null,null,null,null,null,null,null,null,null,null,null,null,null,null,null,null,null,null,null,null,null,null,null,null,null,null,"",null,null,null,null,null,null,null,null,null,null,null,null,null,null,null,null,null,null,null,null,null,null,null,null,null,null,null,null,null,null,null,null,null,null,null,null,null,null,null,null,null,null,null,null,null,null,null,null,null,null,null,null,null,null,null,null,null,null,null,null,null,null,null,null,null,null,null,null,null,null,null,null,null,null,null,null,null,null,null,null,null,null,null,null,null,null,null,null,null,null,null,null,null,null,null,null,"",null,null,null,null,null,null,null,null,"",null,"",null,null,null,null,null,null,null,null,null,null,"",null,null,null,null,null,null,null,null,null,null,"",null,null,null,null,null,null,null,null,"","","","","",1,"",1,1,"","","","","","","","","","","","","","","","","","","","","","","","","","","","","","","",""]
[19,null,null,"",null,null,null,null,null,null,null,null,null,null,null,null,null,null,null,null,null,null,null,null,null,null,null,null,null,null,null,null,null,null,null,null,null,null,null,null,null,null,null,null,null,null,null,null,null,"",null,null,null,null,null,null,null,null,null,null,null,null,null,null,null,null,null,null,null,null,null,null,null,null,null,null,null,null,null,null,null,null,null,null,null,null,null,null,null,null,null,null,null,null,null,null,null,null,null,null,null,null,null,null,null,null,null,null,null,null,null,null,null,null,null,null,null,null,null,null,null,null,null,null,null,null,null,null,null,null,null,null,null,null,null,null,null,null,null,null,null,null,null,null,null,null,"",null,null,null,null,null,null,null,null,"",null,"",null,null,null,null,null,null,null,null,null,null,"",null,null,null,null,null,null,null,null,null,null,"",null,null,null,null,null,null,null,null,"","","","","",1,"",1,1,"","","","","","","","","","","","","","","","","","","","","","","","","","","","","","","",""]
[20,null,null,"",null,null,null,null,null,null,null,null,null,null,null,null,null,null,null,null,null,null,null,null,null,null,null,null,null,null,null,null,null,null,null,null,null,null,null,null,null,null,null,null,null,null,null,null,null,"",null,null,null,null,null,null,null,null,null,null,null,null,null,null,null,null,null,null,null,null,null,null,null,null,null,null,null,null,null,null,null,null,null,null,null,null,null,null,null,null,null,null,null,null,null,null,null,null,null,null,null,null,null,null,null,null,null,null,null,null,null,null,null,null,null,null,null,null,null,null,null,null,null,null,null,null,null,null,null,null,null,null,null,null,null,null,null,null,null,null,null,null,null,null,null,null,"",null,null,null,null,null,null,null,null,"",null,"",null,null,null,null,null,null,null,null,null,null,"",null,null,null,null,null,null,null,null,null,null,"",null,null,null,null,null,null,null,null,"","","","","",1,"",1,1,"","","","","","","","","","","","","","","","","","","","","","","","","","","","","","","",""]
[21,null,null,"",null,null,null,null,null,null,null,null,null,null,null,null,null,null,null,null,null,null,null,null,null,null,null,null,null,null,null,null,null,null,null,null,null,null,null,null,null,null,null,null,null,null,null,null,null,"",null,null,null,null,null,null,null,null,null,null,null,null,null,null,null,null,null,null,null,null,null,null,null,null,null,null,null,null,null,null,null,null,null,null,null,null,null,null,null,null,null,null,null,null,null,null,null,null,null,null,null,null,null,null,null,null,null,null,null,null,null,null,null,null,null,null,null,null,null,null,null,null,null,null,null,null,null,null,null,null,null,null,null,null,null,null,null,null,null,null,null,null,null,null,null,null,"",null,null,null,null,null,null,null,null,"",null,"",null,null,null,null,null,null,null,null,null,null,"",null,null,null,null,null,null,null,null,null,null,"",null,null,null,null,null,null,null,null,"","","","","",1,"",1,1,"","","","","","","","","","","","","","","","","","","","","","","","","","","","","","","",""]
[22,null,null,"",null,null,null,null,null,null,null,null,null,null,null,null,null,null,null,null,null,null,null,null,null,null,null,null,null,null,null,null,null,null,null,null,null,null,null,null,null,null,null,null,null,null,null,null,null,"",null,null,null,null,null,null,null,null,null,null,null,null,null,null,null,null,null,null,null,null,null,null,null,null,null,null,null,null,null,null,null,null,null,null,null,null,null,null,null,null,null,null,null,null,null,null,null,null,null,null,null,null,null,null,null,null,null,null,null,null,null,null,null,null,null,null,null,null,null,null,null,null,null,null,null,null,null,null,null,null,null,null,null,null,null,null,null,null,null,null,null,null,null,null,null,null,"",null,null,null,null,null,null,null,null,"",null,"",null,null,null,null,null,null,null,null,null,null,"",null,null,null,null,null,null,null,null,null,null,"",null,null,null,null,null,null,null,null,"","","","","",1,"",1,1,"","","","","","","","","","","","","","","","","","","","","","","","","","","","","","","",""]
[23,null,null,"",null,null,null,null,null,null,null,null,null,null,null,null,null,null,null,null,null,null,null,null,null,null,null,null,null,null,null,null,null,null,null,null,null,null,null,null,null,null,null,null,null,null,null,null,null,"",null,null,null,null,null,null,null,null,null,null,null,null,null,null,null,null,null,null,null,null,null,null,null,null,null,null,null,null,null,null,null,null,null,null,null,null,null,null,null,null,null,null,null,null,null,null,null,null,null,null,null,null,null,null,null,null,null,null,null,null,null,null,null,null,null,null,null,null,null,null,null,null,null,null,null,null,null,null,null,null,null,null,null,null,null,null,null,null,null,null,null,null,null,null,null,null,"",null,null,null,null,null,null,null,null,"",null,"",null,null,null,null,null,null,null,null,null,null,"",null,null,null,null,null,null,null,null,null,null,"",null,null,null,null,null,null,null,null,"","","","","",1,"",1,1,"","","","","","","","","","","","","","","","","","","","","","","","","","","","","","","",""]
[24,null,null,"",null,null,null,null,null,null,null,null,null,null,null,null,null,null,null,null,null,null,null,null,null,null,null,null,null,null,null,null,null,null,null,null,null,null,null,null,null,null,null,null,null,null,null,null,null,"",null,null,null,null,null,null,null,null,null,null,null,null,null,null,null,null,null,null,null,null,null,null,null,null,null,null,null,null,null,null,null,null,null,null,null,null,null,null,null,null,null,null,null,null,null,null,null,null,null,null,null,null,null,null,null,null,null,null,null,null,null,null,null,null,null,null,null,null,null,null,null,null,null,null,null,null,null,null,null,null,null,null,null,null,null,null,null,null,null,null,null,null,null,null,null,null,"",null,null,null,null,null,null,null,null,"",null,"",null,null,null,null,null,null,null,null,null,null,"",null,null,null,null,null,null,null,null,null,null,"",null,null,null,null,null,null,null,null,"","","","","",1,"",1,1,"","","","","","","","","","","","","","","","","","","","","","","","","","","","","","","",""]
[25,null,null,"",null,null,null,null,null,null,null,null,null,null,null,null,null,null,null,null,null,null,null,null,null,null,null,null,null,null,null,null,null,null,null,null,null,null,null,null,null,null,null,null,null,null,null,null,null,"",null,null,null,null,null,null,null,null,null,null,null,null,null,null,null,null,null,null,null,null,null,null,null,null,null,null,null,null,null,null,null,null,null,null,null,null,null,null,null,null,null,null,null,null,null,null,null,null,null,null,null,null,null,null,null,null,null,null,null,null,null,null,null,null,null,null,null,null,null,null,null,null,null,null,null,null,null,null,null,null,null,null,null,null,null,null,null,null,null,null,null,null,null,null,null,null,"",null,null,null,null,null,null,null,null,"",null,"",null,null,null,null,null,null,null,null,null,null,"",null,null,null,null,null,null,null,null,null,null,"",null,null,null,null,null,null,null,null,"","","","","",1,"",1,1,"","","","","","","","","","","","","","","","","","","","","","","","","","","","","","","",""]
[26,null,null,"",null,null,null,null,null,null,null,null,null,null,null,null,null,null,null,null,null,null,null,null,null,null,null,null,null,null,null,null,null,null,null,null,null,null,null,null,null,null,null,null,null,null,null,null,null,"",null,null,null,null,null,null,null,null,null,null,null,null,null,null,null,null,null,null,null,null,null,null,null,null,null,null,null,null,null,null,null,null,null,null,null,null,null,null,null,null,null,null,null,null,null,null,null,null,null,null,null,null,null,null,null,null,null,null,null,null,null,null,null,null,null,null,null,null,null,null,null,null,null,null,null,null,null,null,null,null,null,null,null,null,null,null,null,null,null,null,null,null,null,null,null,null,"",null,null,null,null,null,null,null,null,"",null,"",null,null,null,null,null,null,null,null,null,null,"",null,null,null,null,null,null,null,null,null,null,"",null,null,null,null,null,null,null,null,"","","","","",1,"",1,1,"","","","","","","","","","","","","","","","","","","","","","","","","","","","","","","",""]
[27,null,null,"",null,null,null,null,null,null,null,null,null,null,null,null,null,null,null,null,null,null,null,null,null,null,null,null,null,null,null,null,null,null,null,null,null,null,null,null,null,null,null,null,null,null,null,null,null,"",null,null,null,null,null,null,null,null,null,null,null,null,null,null,null,null,null,null,null,null,null,null,null,null,null,null,null,null,null,null,null,null,null,null,null,null,null,null,null,null,null,null,null,null,null,null,null,null,null,null,null,null,null,null,null,null,null,null,null,null,null,null,null,null,null,null,null,null,null,null,null,null,null,null,null,null,null,null,null,null,null,null,null,null,null,null,null,null,null,null,null,null,null,null,null,null,"",null,null,null,null,null,null,null,null,"",null,"",null,null,null,null,null,null,null,null,null,null,"",null,null,null,null,null,null,null,null,null,null,"",null,null,null,null,null,null,null,null,"","","","","",1,"",1,1,"","","","","","","","","","","","","","","","","","","","","","","","","","","","","","","",""]
[28,null,null,"",null,null,null,null,null,null,null,null,null,null,null,null,null,null,null,null,null,null,null,null,null,null,null,null,null,null,null,null,null,null,null,null,null,null,null,null,null,null,null,null,null,null,null,null,null,"",null,null,null,null,null,null,null,null,null,null,null,null,null,null,null,null,null,null,null,null,null,null,null,null,null,null,null,null,null,null,null,null,null,null,null,null,null,null,null,null,null,null,null,null,null,null,null,null,null,null,null,null,null,null,null,null,null,null,null,null,null,null,null,null,null,null,null,null,null,null,null,null,null,null,null,null,null,null,null,null,null,null,null,null,null,null,null,null,null,null,null,null,null,null,null,null,"",null,null,null,null,null,null,null,null,"",null,"",null,null,null,null,null,null,null,null,null,null,"",null,null,null,null,null,null,null,null,null,null,"",null,null,null,null,null,null,null,null,"","","","","",1,"",1,1,"","","","","","","","","","","","","","","","","","","","","","","","","","","","","","","",""]
[29,null,null,"",null,null,null,null,null,null,null,null,null,null,null,null,null,null,null,null,null,null,null,null,null,null,null,null,null,null,null,null,null,null,null,null,null,null,null,null,null,null,null,null,null,null,null,null,null,"",null,null,null,null,null,null,null,null,null,null,null,null,null,null,null,null,null,null,null,null,null,null,null,null,null,null,null,null,null,null,null,null,null,null,null,null,null,null,null,null,null,null,null,null,null,null,null,null,null,null,null,null,null,null,null,null,null,null,null,null,null,null,null,null,null,null,null,null,null,null,null,null,null,null,null,null,null,null,null,null,null,null,null,null,null,null,null,null,null,null,null,null,null,null,null,null,"",null,null,null,null,null,null,null,null,"",null,"",null,null,null,null,null,null,null,null,null,null,"",null,null,null,null,null,null,null,null,null,null,"",null,null,null,null,null,null,null,null,"","","","","",1,"",1,1,"","","","","","","","","","","","","","","","","","","","","","","","","","","","","","","",""]
[30,null,null,"",null,null,null,null,null,null,null,null,null,null,null,null,null,null,null,null,null,null,null,null,null,null,null,null,null,null,null,null,null,null,null,null,null,null,null,null,null,null,null,null,null,null,null,null,null,"",null,null,null,null,null,null,null,null,null,null,null,null,null,null,null,null,null,null,null,null,null,null,null,null,null,null,null,null,null,null,null,null,null,null,null,null,null,null,null,null,null,null,null,null,null,null,null,null,null,null,null,null,null,null,null,null,null,null,null,null,null,null,null,null,null,null,null,null,null,null,null,null,null,null,null,null,null,null,null,null,null,null,null,null,null,null,null,null,null,null,null,null,null,null,null,null,"",null,null,null,null,null,null,null,null,"",null,"",null,null,null,null,null,null,null,null,null,null,"",null,null,null,null,null,null,null,null,null,null,"",null,null,null,null,null,null,null,null,"","","","","",1,"",1,1,"","","","","","","","","","","","","","","","","","","","","","","","","","","","","","","",""]
[31,null,null,"",null,null,null,null,null,null,null,null,null,null,null,null,null,null,null,null,null,null,null,null,null,null,null,null,null,null,null,null,null,null,null,null,null,null,null,null,null,null,null,null,null,null,null,null,null,"",null,null,null,null,null,null,null,null,null,null,null,null,null,null,null,null,null,null,null,null,null,null,null,null,null,null,null,null,null,null,null,null,null,null,null,null,null,null,null,null,null,null,null,null,null,null,null,null,null,null,null,null,null,null,null,null,null,null,null,null,null,null,null,null,null,null,null,null,null,null,null,null,null,null,null,null,null,null,null,null,null,null,null,null,null,null,null,null,null,null,null,null,null,null,null,null,"",null,null,null,null,null,null,null,null,"",null,"",null,null,null,null,null,null,null,null,null,null,"",null,null,null,null,null,null,null,null,null,null,"",null,null,null,null,null,null,null,null,"","","","","",1,"",1,1,"","","","","","","","","","","","","","","","","","","","","","","","","","","","","","","",""]
[32,null,null,"",null,null,null,null,null,null,null,null,null,null,null,null,null,null,null,null,null,null,null,null,null,null,null,null,null,null,null,null,null,null,null,null,null,null,null,null,null,null,null,null,null,null,null,null,null,{"$f":"IF(GM66=1,IF(F66=\"\",\"\",F66),\"\")","v":""},null,null,null,null,null,null,null,null,null,null,null,null,null,null,null,null,null,null,null,null,null,null,null,null,null,null,null,null,null,null,null,null,null,null,null,null,null,null,null,null,null,null,null,null,null,null,null,null,null,null,null,null,null,null,null,null,null,null,null,null,null,null,null,null,null,null,null,null,null,null,null,null,null,null,null,null,null,null,null,null,null,null,null,null,null,null,null,null,null,null,null,null,null,null,null,null,{"$f":"IF(F66=\"\",\"\",F66)","v":""},null,null,null,null,null,null,null,null,"",null,{"$f":"IF(OR(IF(OR(FC66=\"\",FC66=\"無し\"),\"\",1)=1,IF(OR(FE66=\"\",FE66=\"無し\"),\"\",1)=1,IF(OR(FG66=\"\",FG66=\"無し\"),\"\",1)=1,IF(OR(FI66=\"\",FI66=\"無し\"),\"\",1)=1),IF(F66=\"\",\"\",F66),\"\")","v":""},null,null,null,null,null,null,null,null,null,null,{"$f":"IF(OR(IF(OR(FN66=\"\",FN66=\"無し\"),\"\",1)=1,IF(OR(FP66=\"\",FP66=\"無し\"),\"\",1)=1,IF(OR(FR66=\"\",FR66=\"無し\"),\"\",1)=1,IF(OR(FT66=\"\",FT66=\"無し\"),\"\",1)=1),IF(F66=\"\",\"\",F66),\"\")","v":""},null,null,null,null,null,null,null,null,null,null,{"$f":"IF(OR(IF(OR(FY66=\"\",FY66=\"無し\"),\"\",1)=1,IF(OR(GA66=\"\",GA66=\"無し\"),\"\",1)=1,IF(OR(GC66=\"\",GC66=\"無し\"),\"\",1)=1,IF(OR(GE66=\"\",GE66=\"無し\"),\"\",1)=1),IF(F66=\"\",\"\",F66),\"\")","v":""},null,null,null,null,null,null,null,null,"","","","","",1,"",1,1,"","","","","","","","","","","","","","","","","","","","","","","","","","","","","","","",""]
[33,null,null,"",null,null,null,null,null,null,null,null,null,null,null,null,null,null,null,null,null,null,null,null,null,null,null,null,null,null,null,null,null,null,null,null,null,null,null,null,null,null,null,null,null,null,null,null,null,"",null,null,null,null,null,null,null,null,null,null,null,null,null,null,null,null,null,null,null,null,null,null,null,null,null,null,null,null,null,null,null,null,null,null,null,null,null,null,null,null,null,null,null,null,null,null,null,null,null,null,null,null,null,null,null,null,null,null,null,null,null,null,null,null,null,null,null,null,null,null,null,null,null,null,null,null,null,null,null,null,null,null,null,null,null,null,null,null,null,null,null,null,null,null,null,null,"",null,null,null,null,null,null,null,null,"",null,"",null,null,null,null,null,null,null,null,null,null,"",null,null,null,null,null,null,null,null,null,null,"",null,null,null,null,null,null,null,null,"","","","","",1,"",1,1,"","","","","","","","","","","","","","","","","","","","","","","","","","","","","","","",""]
[34,null,null,"",null,null,null,null,null,null,null,null,null,null,null,null,null,null,null,null,null,null,null,null,null,null,null,null,null,null,null,null,null,null,null,null,null,null,null,null,null,null,null,null,null,null,null,null,null,"",null,null,null,null,null,null,null,null,null,null,null,null,null,null,null,null,null,null,null,null,null,null,null,null,null,null,null,null,null,null,null,null,null,null,null,null,null,null,null,null,null,null,null,null,null,null,null,null,null,null,null,null,null,null,null,null,null,null,null,null,null,null,null,null,null,null,null,null,null,null,null,null,null,null,null,null,null,null,null,null,null,null,null,null,null,null,null,null,null,null,null,null,null,null,null,null,"",null,null,null,null,null,null,null,null,"",null,"",null,null,null,null,null,null,null,null,null,null,"",null,null,null,null,null,null,null,null,null,null,"",null,null,null,null,null,null,null,null,"","","","","",1,"",1,1,"","","","","","","","","","","","","","","","","","","","","","","","","","","","","","","",""]
[35,null,null,"",null,null,null,null,null,null,null,null,null,null,null,null,null,null,null,null,null,null,null,null,null,null,null,null,null,null,null,null,null,null,null,null,null,null,null,null,null,null,null,null,null,null,null,null,null,"",null,null,null,null,null,null,null,null,null,null,null,null,null,null,null,null,null,null,null,null,null,null,null,null,null,null,null,null,null,null,null,null,null,null,null,null,null,null,null,null,null,null,null,null,null,null,null,null,null,null,null,null,null,null,null,null,null,null,null,null,null,null,null,null,null,null,null,null,null,null,null,null,null,null,null,null,null,null,null,null,null,null,null,null,null,null,null,null,null,null,null,null,null,null,null,null,"",null,null,null,null,null,null,null,null,"",null,"",null,null,null,null,null,null,null,null,null,null,"",null,null,null,null,null,null,null,null,null,null,"",null,null,null,null,null,null,null,null,"","","","","",1,"",1,1,"","","","","","","","","","","","","","","","","","","","","","","","","","","","","","","",""]
[36,null,null,"",null,null,null,null,null,null,null,null,null,null,null,null,null,null,null,null,null,null,null,null,null,null,null,null,null,null,null,null,null,null,null,null,null,null,null,null,null,null,null,null,null,null,null,null,null,"",null,null,null,null,null,null,null,null,null,null,null,null,null,null,null,null,null,null,null,null,null,null,null,null,null,null,null,null,null,null,null,null,null,null,null,null,null,null,null,null,null,null,null,null,null,null,null,null,null,null,null,null,null,null,null,null,null,null,null,null,null,null,null,null,null,null,null,null,null,null,null,null,null,null,null,null,null,null,null,null,null,null,null,null,null,null,null,null,null,null,null,null,null,null,null,null,"",null,null,null,null,null,null,null,null,"",null,"",null,null,null,null,null,null,null,null,null,null,"",null,null,null,null,null,null,null,null,null,null,"",null,null,null,null,null,null,null,null,"","","","","",1,"",1,1,"","","","","","","","","","","","","","","","","","","","","","","","","","","","","","","",""]
[37,null,null,"",null,null,null,null,null,null,null,null,null,null,null,null,null,null,null,null,null,null,null,null,null,null,null,null,null,null,null,null,null,null,null,null,null,null,null,null,null,null,null,null,null,null,null,null,null,"",null,null,null,null,null,null,null,null,null,null,null,null,null,null,null,null,null,null,null,null,null,null,null,null,null,null,null,null,null,null,null,null,null,null,null,null,null,null,null,null,null,null,null,null,null,null,null,null,null,null,null,null,null,null,null,null,null,null,null,null,null,null,null,null,null,null,null,null,null,null,null,null,null,null,null,null,null,null,null,null,null,null,null,null,null,null,null,null,null,null,null,null,null,null,null,null,"",null,null,null,null,null,null,null,null,"",null,"",null,null,null,null,null,null,null,null,null,null,"",null,null,null,null,null,null,null,null,null,null,"",null,null,null,null,null,null,null,null,"","","","","",1,"",1,1,"","","","","","","","","","","","","","","","","","","","","","","","","","","","","","","",""]
[38,null,null,"",null,null,null,null,null,null,null,null,null,null,null,null,null,null,null,null,null,null,null,null,null,null,null,null,null,null,null,null,null,null,null,null,null,null,null,null,null,null,null,null,null,null,null,null,null,"",null,null,null,null,null,null,null,null,null,null,null,null,null,null,null,null,null,null,null,null,null,null,null,null,null,null,null,null,null,null,null,null,null,null,null,null,null,null,null,null,null,null,null,null,null,null,null,null,null,null,null,null,null,null,null,null,null,null,null,null,null,null,null,null,null,null,null,null,null,null,null,null,null,null,null,null,null,null,null,null,null,null,null,null,null,null,null,null,null,null,null,null,null,null,null,null,"",null,null,null,null,null,null,null,null,"",null,"",null,null,null,null,null,null,null,null,null,null,"",null,null,null,null,null,null,null,null,null,null,"",null,null,null,null,null,null,null,null,"","","","","",1,"",1,1,"","","","","","","","","","","","","","","","","","","","","","","","","","","","","","","",""]
[39,null,null,"",null,null,null,null,null,null,null,null,null,null,null,null,null,null,null,null,null,null,null,null,null,null,null,null,null,null,null,null,null,null,null,null,null,null,null,null,null,null,null,null,null,null,null,null,null,"",null,null,null,null,null,null,null,null,null,null,null,null,null,null,null,null,null,null,null,null,null,null,null,null,null,null,null,null,null,null,null,null,null,null,null,null,null,null,null,null,null,null,null,null,null,null,null,null,null,null,null,null,null,null,null,null,null,null,null,null,null,null,null,null,null,null,null,null,null,null,null,null,null,null,null,null,null,null,null,null,null,null,null,null,null,null,null,null,null,null,null,null,null,null,null,null,"",null,null,null,null,null,null,null,null,"",null,"",null,null,null,null,null,null,null,null,null,null,"",null,null,null,null,null,null,null,null,null,null,"",null,null,null,null,null,null,null,null,"","","","","",1,"",1,1,"","","","","","","","","","","","","","","","","","","","","","","","","","","","","","","",""]
[40,null,null,"",null,null,null,null,null,null,null,null,null,null,null,null,null,null,null,null,null,null,null,null,null,null,null,null,null,null,null,null,null,null,null,null,null,null,null,null,null,null,null,null,null,null,null,null,null,"",null,null,null,null,null,null,null,null,null,null,null,null,null,null,null,null,null,null,null,null,null,null,null,null,null,null,null,null,null,null,null,null,null,null,null,null,null,null,null,null,null,null,null,null,null,null,null,null,null,null,null,null,null,null,null,null,null,null,null,null,null,null,null,null,null,null,null,null,null,null,null,null,null,null,null,null,null,null,null,null,null,null,null,null,null,null,null,null,null,null,null,null,null,null,null,null,"",null,null,null,null,null,null,null,null,"",null,"",null,null,null,null,null,null,null,null,null,null,"",null,null,null,null,null,null,null,null,null,null,"",null,null,null,null,null,null,null,null,"","","","","",1,"",1,1,"","","","","","","","","","","","","","","","","","","","","","","","","","","","","","","",""]
[41,null,null,"",null,null,null,null,null,null,null,null,null,null,null,null,null,null,null,null,null,null,null,null,null,null,null,null,null,null,null,null,null,null,null,null,null,null,null,null,null,null,null,null,null,null,null,null,null,"",null,null,null,null,null,null,null,null,null,null,null,null,null,null,null,null,null,null,null,null,null,null,null,null,null,null,null,null,null,null,null,null,null,null,null,null,null,null,null,null,null,null,null,null,null,null,null,null,null,null,null,null,null,null,null,null,null,null,null,null,null,null,null,null,null,null,null,null,null,null,null,null,null,null,null,null,null,null,null,null,null,null,null,null,null,null,null,null,null,null,null,null,null,null,null,null,"",null,null,null,null,null,null,null,null,"",null,"",null,null,null,null,null,null,null,null,null,null,"",null,null,null,null,null,null,null,null,null,null,"",null,null,null,null,null,null,null,null,"","","","","",1,"",1,1,"","","","","","","","","","","","","","","","","","","","","","","","","","","","","","","",""]
[42,null,null,"",null,null,null,null,null,null,null,null,null,null,null,null,null,null,null,null,null,null,null,null,null,null,null,null,null,null,null,null,null,null,null,null,null,null,null,null,null,null,null,null,null,null,null,null,null,"",null,null,null,null,null,null,null,null,null,null,null,null,null,null,null,null,null,null,null,null,null,null,null,null,null,null,null,null,null,null,null,null,null,null,null,null,null,null,null,null,null,null,null,null,null,null,null,null,null,null,null,null,null,null,null,null,null,null,null,null,null,null,null,null,null,null,null,null,null,null,null,null,null,null,null,null,null,null,null,null,null,null,null,null,null,null,null,null,null,null,null,null,null,null,null,null,"",null,null,null,null,null,null,null,null,"",null,"",null,null,null,null,null,null,null,null,null,null,"",null,null,null,null,null,null,null,null,null,null,"",null,null,null,null,null,null,null,null,"","","","","",1,"",1,1,"","","","","","","","","","","","","","","","","","","","","","","","","","","","","","","",""]
[43,null,null,"",null,null,null,null,null,null,null,null,null,null,null,null,null,null,null,null,null,null,null,null,null,null,null,null,null,null,null,null,null,null,null,null,null,null,null,null,null,null,null,null,null,null,null,null,null,"",null,null,null,null,null,null,null,null,null,null,null,null,null,null,null,null,null,null,null,null,null,null,null,null,null,null,null,null,null,null,null,null,null,null,null,null,null,null,null,null,null,null,null,null,null,null,null,null,null,null,null,null,null,null,null,null,null,null,null,null,null,null,null,null,null,null,null,null,null,null,null,null,null,null,null,null,null,null,null,null,null,null,null,null,null,null,null,null,null,null,null,null,null,null,null,null,"",null,null,null,null,null,null,null,null,"",null,"",null,null,null,null,null,null,null,null,null,null,"",null,null,null,null,null,null,null,null,null,null,"",null,null,null,null,null,null,null,null,"","","","","",1,"",1,1,"","","","","","","","","","","","","","","","","","","","","","","","","","","","","","","",""]
[44,null,null,"",null,null,null,null,null,null,null,null,null,null,null,null,null,null,null,null,null,null,null,null,null,null,null,null,null,null,null,null,null,null,null,null,null,null,null,null,null,null,null,null,null,null,null,null,null,"",null,null,null,null,null,null,null,null,null,null,null,null,null,null,null,null,null,null,null,null,null,null,null,null,null,null,null,null,null,null,null,null,null,null,null,null,null,null,null,null,null,null,null,null,null,null,null,null,null,null,null,null,null,null,null,null,null,null,null,null,null,null,null,null,null,null,null,null,null,null,null,null,null,null,null,null,null,null,null,null,null,null,null,null,null,null,null,null,null,null,null,null,null,null,null,null,"",null,null,null,null,null,null,null,null,"",null,"",null,null,null,null,null,null,null,null,null,null,"",null,null,null,null,null,null,null,null,null,null,"",null,null,null,null,null,null,null,null,"","","","","",1,"",1,1,"","","","","","","","","","","","","","","","","","","","","","","","","","","","","","","",""]
[45,null,null,"",null,null,null,null,null,null,null,null,null,null,null,null,null,null,null,null,null,null,null,null,null,null,null,null,null,null,null,null,null,null,null,null,null,null,null,null,null,null,null,null,null,null,null,null,null,"",null,null,null,null,null,null,null,null,null,null,null,null,null,null,null,null,null,null,null,null,null,null,null,null,null,null,null,null,null,null,null,null,null,null,null,null,null,null,null,null,null,null,null,null,null,null,null,null,null,null,null,null,null,null,null,null,null,null,null,null,null,null,null,null,null,null,null,null,null,null,null,null,null,null,null,null,null,null,null,null,null,null,null,null,null,null,null,null,null,null,null,null,null,null,null,null,"",null,null,null,null,null,null,null,null,"",null,"",null,null,null,null,null,null,null,null,null,null,"",null,null,null,null,null,null,null,null,null,null,"",null,null,null,null,null,null,null,null,"","","","","",1,"",1,1,"","","","","","","","","","","","","","","","","","","","","","","","","","","","","","","",""]
[46,null,null,"",null,null,null,null,null,null,null,null,null,null,null,null,null,null,null,null,null,null,null,null,null,null,null,null,null,null,null,null,null,null,null,null,null,null,null,null,null,null,null,null,null,null,null,null,null,"",null,null,null,null,null,null,null,null,null,null,null,null,null,null,null,null,null,null,null,null,null,null,null,null,null,null,null,null,null,null,null,null,null,null,null,null,null,null,null,null,null,null,null,null,null,null,null,null,null,null,null,null,null,null,null,null,null,null,null,null,null,null,null,null,null,null,null,null,null,null,null,null,null,null,null,null,null,null,null,null,null,null,null,null,null,null,null,null,null,null,null,null,null,null,null,null,"",null,null,null,null,null,null,null,null,"",null,"",null,null,null,null,null,null,null,null,null,null,"",null,null,null,null,null,null,null,null,null,null,"",null,null,null,null,null,null,null,null,"","","","","",1,"",1,1,"","","","","","","","","","","","","","","","","","","","","","","","","","","","","","","",""]
[47,null,null,"",null,null,null,null,null,null,null,null,null,null,null,null,null,null,null,null,null,null,null,null,null,null,null,null,null,null,null,null,null,null,null,null,null,null,null,null,null,null,null,null,null,null,null,null,null,"",null,null,null,null,null,null,null,null,null,null,null,null,null,null,null,null,null,null,null,null,null,null,null,null,null,null,null,null,null,null,null,null,null,null,null,null,null,null,null,null,null,null,null,null,null,null,null,null,null,null,null,null,null,null,null,null,null,null,null,null,null,null,null,null,null,null,null,null,null,null,null,null,null,null,null,null,null,null,null,null,null,null,null,null,null,null,null,null,null,null,null,null,null,null,null,null,"",null,null,null,null,null,null,null,null,"",null,"",null,null,null,null,null,null,null,null,null,null,"",null,null,null,null,null,null,null,null,null,null,"",null,null,null,null,null,null,null,null,"","","","","",1,"",1,1,"","","","","","","","","","","","","","","","","","","","","","","","","","","","","","","",""]
[48,null,null,"",null,null,null,null,null,null,null,null,null,null,null,null,null,null,null,null,null,null,null,null,null,null,null,null,null,null,null,null,null,null,null,null,null,null,null,null,null,null,null,null,null,null,null,null,null,"",null,null,null,null,null,null,null,null,null,null,null,null,null,null,null,null,null,null,null,null,null,null,null,null,null,null,null,null,null,null,null,null,null,null,null,null,null,null,null,null,null,null,null,null,null,null,null,null,null,null,null,null,null,null,null,null,null,null,null,null,null,null,null,null,null,null,null,null,null,null,null,null,null,null,null,null,null,null,null,null,null,null,null,null,null,null,null,null,null,null,null,null,null,null,null,null,"",null,null,null,null,null,null,null,null,"",null,"",null,null,null,null,null,null,null,null,null,null,"",null,null,null,null,null,null,null,null,null,null,"",null,null,null,null,null,null,null,null,"","","","","",1,"",1,1,"","","","","","","","","","","","","","","","","","","","","","","","","","","","","","","",""]
[49,null,null,"",null,null,null,null,null,null,null,null,null,null,null,null,null,null,null,null,null,null,null,null,null,null,null,null,null,null,null,null,null,null,null,null,null,null,null,null,null,null,null,null,null,null,null,null,null,"",null,null,null,null,null,null,null,null,null,null,null,null,null,null,null,null,null,null,null,null,null,null,null,null,null,null,null,null,null,null,null,null,null,null,null,null,null,null,null,null,null,null,null,null,null,null,null,null,null,null,null,null,null,null,null,null,null,null,null,null,null,null,null,null,null,null,null,null,null,null,null,null,null,null,null,null,null,null,null,null,null,null,null,null,null,null,null,null,null,null,null,null,null,null,null,null,"",null,null,null,null,null,null,null,null,"",null,"",null,null,null,null,null,null,null,null,null,null,"",null,null,null,null,null,null,null,null,null,null,"",null,null,null,null,null,null,null,null,"","","","","",1,"",1,1,"","","","","","","","","","","","","","","","","","","","","","","","","","","","","","","",""]
[50,null,null,"",null,null,null,null,null,null,null,null,null,null,null,null,null,null,null,null,null,null,null,null,null,null,null,null,null,null,null,null,null,null,null,null,null,null,null,null,null,null,null,null,null,null,null,null,null,"",null,null,null,null,null,null,null,null,null,null,null,null,null,null,null,null,null,null,null,null,null,null,null,null,null,null,null,null,null,null,null,null,null,null,null,null,null,null,null,null,null,null,null,null,null,null,null,null,null,null,null,null,null,null,null,null,null,null,null,null,null,null,null,null,null,null,null,null,null,null,null,null,null,null,null,null,null,null,null,null,null,null,null,null,null,null,null,null,null,null,null,null,null,null,null,null,"",null,null,null,null,null,null,null,null,"",null,"",null,null,null,null,null,null,null,null,null,null,"",null,null,null,null,null,null,null,null,null,null,"",null,null,null,null,null,null,null,null,"","","","",{"$f":"IF(AT84<>\"\",1,\"\")","v":""},1,"",1,1,"","","","","","","","","","","","","","","","","","","","","","","","","","","","","","","",""]

{"sheet":"マスターシート","index":2,"n_rows":19,"n_cols":37,"rows_kept":19,"cut":false,"hidden":true,"merged":[]}
[]
[null,"チェックＢＯＸ","免震構造物","共用排水","地盤調査方法","直接基礎_構造方法","直接基礎_形式","杭種","選択","選択○×","界床","避難器具種類","躯体天井","異なる天井","変更障害","地域区分","開口部住戸位置","出入口","排煙形式","平面形状","等級0_2","等級0_3","等級0_4","等級0_5",null,"等級1_2","等級1_3","等級1_4","等級1_5","等級_320","等級1_8","スラブ厚","温熱環境に関すること","等級5_1","等級5_2","重量床衝撃音対策","軽量床衝撃音対策"]
[null,"□"]
[null,"■","免震建築物","共用廊下に面する共用部分","標準貫入試験","鉄筋コンクリート造","ベタ基礎","支持杭","○","○","なし","避難はしご","地上","該当なし","なし","Ⅰ","地下","有効","a.開放型廊下","a.２方向避難",2,3,4,5,null,2,3,4,5,3,8,0,"熱損失係数",7,6,"対策等級","対策等級"]
[null,null,"その他","外壁面、吹き抜け等の住戸外周部","スクリューウエイト貫入試験","直接基礎","独立基礎","摩擦杭",null,"×","上階","滑り棒","地下","はり","壁","Ⅱ","地上","シャッター","b.自然排煙","b.直通階段",1,2,3,4,null,1,2,3,4,2,7,"a","熱貫流率",6,5,"相当スラブ厚","レベル低減量"]
[null,null,null,"バルコニー","スウェーデン式サウンディング試験","SB工法","布基礎",null,null,null,"下階","避難ロープ","その他","傾斜屋根","柱","Ⅲ","屋上","その他","c.機械排煙(一般)","c.その他",0,1,2,3,null,null,1,2,3,0,6,"b",null,5,4]
[null,null,null,"住戸専用部","平板載荷試験",null,null,null,null,null,"上階及び下階","避難用タラップ",null,"その他","壁柱","Ⅳ","中間階","無し","d.機械排煙(加圧式)",null,null,0,1,2,null,null,null,1,2,null,5,"c",null,4,1]
[null,null,null,"その他","表面波探査法 ",null,null,null,null,null,null,"滑り台",null,null,null,"Ⅴ","その他",null,"e.その他",null,null,null,0,1,null,null,null,null,1,null,4,"d",null,3,null,"ｲ：対策等級","ｲ：対策等級"]
[null,null,null,null,null,null,null,null,null,null,null,"緩降機",null,null,null,"Ⅵ",null,null,null,null,null,null,null,0,null,null,null,null,null,null,3,"e",null,2,null,"ﾛ：相当スラブ厚","ﾛ：レベル低減量"]
[null,null,null,null,null,null,null,null,null,null,null,"避難橋",null,null,null,null,null,null,null,null,null,null,null,null,null,null,null,null,null,null,2,null,null,1]
[null,null,null,null,null,null,null,null,null,null,null,"救助袋",null,null,null,null,null,null,null,null,null,null,null,null,null,null,null,null,null,null,1]
[]
["自己評価書で不要になって移動したセル名："]
[]
["work_tower_N01_6_JIBAN_TYOUSA_2"]
[]
["work_tower_N01_6_JIBAN_TYOUSA_3"]
[]
["work_tower_N01_6_JIBAN_TYOUSA_4"]